Cogmind - Beta 16.1 @@@ ROGUE MODE // 2026.04.04 @ 17:18:36 Player: Dosh Result: Escaped! Performance ------------- Evolutions (9) 4500 Regions Visited (35) 7000 Robots Destroyed (463) 2315 Value Destroyed (30985) 30985 Prototype IDs (84) 1680 Alien Tech Used (7) 1400 Bonus (50279) 50279 TOTAL SCORE: 98159 Bonus ------- Triggered High Security 500 High Alert Combat Kills 8377 Follower Combat Kills 24224 Hunted by Unchained 1000 Entered Garrisons 2800 Used RIF Installer 8500 Scanned by Researcher 500 Pursued by Intercept 1000 Destroyed MAIN.C Guards 500 Win 3000 Friendly Fire -122 Cogmind --------- Core Integrity 405/1600 Matter 310/425 Energy 903/920 System Corruption 0% +Membrane Temperature Cool (11) Movement Walking (186) Ox1 Location To Epsilon Eridani Parts ------- > --- POWER (4) -------- Light Antimatter Reactor Quantum Reactor Reinforced Quantum Reactor Improved Quantum Reactor > --- PROPULSION (6) --- Myomer Leg Enhanced Biometal Leg Centrium Leg Centrium Leg High-density Centrium Leg High-density Centrium Leg > --- UTILITY (11) ----- 2N-1CE's Frost Array (fused) Huge Storage Unit Experimental Optical Array Experimental Targeting Computer Experimental Core Analyzer Experimental Core Analyzer Quantum Capacitor Relay Coupler [NC] (17) Relay Coupler [Proto] (3) > --- WEAPON (4) ------- Heavy Neutron Cannon Multirail > --- INVENTORY (25) --- Light Quantum Reactor Light Quantum Reactor Advanced Heavy Siege Treads Enhanced Biometal Leg Centrium Leg Centrium Leg Centrium Leg Wheel Experimental Energy Well (600) Matter Compressor (250) Improved Power Shielding Layered Light Armor Plating Layered Light Armor Plating Layered Heavy Armor Plating Centrium Medium Armor Plating Graphene Brace Relay Coupler [Swarmer] (36) Heavy Linear Accelerator Peak State ------------ > --- POWER ------------ Light Antimatter Reactor Quantum Reactor Reinforced Quantum Reactor Improved Quantum Reactor > --- PROPULSION ------- Myomer Leg Enhanced Biometal Leg Centrium Leg Centrium Leg High-density Centrium Leg High-density Centrium Leg > --- UTILITY ---------- 2N-1CE's Frost Array Huge Storage Unit Experimental Optical Array Experimental Targeting Computer Experimental Core Analyzer Experimental Core Analyzer Quantum Capacitor Experimental Shock Absorption System Relay Coupler [NC] Relay Coupler [Proto] > --- WEAPON ----------- Heavy Neutron Cannon Helical Railgun Multirail Advanced Datajack > --- INVENTORY -------- Light Quantum Reactor Light Quantum Reactor Advanced Heavy Siege Treads Enhanced Biometal Leg Centrium Leg Centrium Leg Centrium Leg Wheel Experimental Energy Well Matter Compressor Improved Power Shielding Layered Light Armor Plating Layered Light Armor Plating Layered Heavy Armor Plating Centrium Medium Armor Plating Graphene Brace Relay Coupler [Swarmer] Heavy Linear Accelerator [Rating: 219] Favorites ----------- Power Compact Particle Reactor Engine Heavy Deuterium Engine Power Core Meta Core Reactor Compact Particle Reactor Propulsion High-density Centrium Heavy Treads Treads High-density Centrium Heavy Treads Leg Centrium Leg Wheel Armored Huge Wheel Utility Huge Storage Unit Device Improved Cooling System Storage Huge Storage Unit Processor Experimental Core Analyzer Hackware Relay Coupler [Grunt] Protection Centrium Heavy Armor Plating Artifact Core Physics Calibrator Weapon Enhanced Autogun Energy Gun EM Shotgun Energy Cannon Enhanced Nova Cannon Ballistic Gun Enhanced Autogun Ballistic Cannon Slug Cannon Launcher Advanced Micro-nuke Launcher Special Weapon Advanced Remote Datajack Impact Weapon Heavy Flail Slashing Weapon Nanosword Special Melee Weapon 1B-0RG's Assimilator Build | -11 -10 -10 -8 -8 -8 -8 -7 -7 -7 -7 -7 -7 -6 -6 -6 -6 -5 -5 -5 -5 -4 -4 -4 -4 -4 -4 -3 -3 -3 -2 -2 -2 -2 -1 -1 ------- Run | Yrd Mat Sub Mat Gar Mat Gar Fac Gar Fac Gar Fac Gar Fac Gar Fac Gar Fac Gar Fac Gar Fac Gar Fac Gar Fac Gar Res Qua Gar Res Tes Sec Gar Acc Com Slots Evolved 18 | . . . 4 . . . 2 . . . . . 2 . . . 2 . . . 2 . . . . . 2 . . 2 . . . 2 . Power 3 | . . . . . . . . . . . . . 1 . . . . . . . 1 . . . . . . . . . . . . 1 . Propulsion 4 | . . . 1 . . . . . . . . . . . . . 1 . . . . . . . . . . . . . . . . 2 . Utility 9 | . . . 1 . . . . . . . . . 1 . . . 1 . . . 1 . . . . . 2 . . 2 . . . 1 . Weapon 2 | . . . 2 . . . 2 . . . . . . . . . . . . . . . . . . . . . . . . . . -2 . Parts Attached 311 | 6 5 11 30 8 9 2 4 1 5 4 2 7 6 10 1 2 2 1 12 8 5 2 . 9 . 3 11 7 7 10 22 12 27 31 29 Power 51 | 1 1 1 2 1 1 . 1 . 2 . . . 2 4 . . . 1 2 2 1 . . . . . . 1 2 1 4 4 7 4 6 Engine 16 | 1 1 1 2 1 1 . 1 . 2 . . . 1 4 . . . . . . . . . . . . . 1 . . . . . . . Core 2 | . . . . . . . . . . . . . 1 . . . . . . . 1 . . . . . . . . . . . . . . Reactor 33 | . . . . . . . . . . . . . . . . . . 1 2 2 . . . . . . . . 2 1 4 4 7 4 6 Propulsion 65 | 2 . 2 7 4 4 . 1 1 1 2 1 2 . . . . 1 . 4 . 1 . . 2 . 1 . . 1 2 2 1 3 15 5 Treads 40 | 2 . 2 7 4 4 . 1 1 1 1 1 . . . . . . . 3 . 1 . . 2 . 1 . . 1 . 2 1 3 2 . Leg 12 | . . . . . . . . . . . . . . . . . . . . . . . . . . . . . . . . . . 7 5 Wheel 13 | . . . . . . . . . . 1 . 2 . . . . 1 . 1 . . . . . . . . . . 2 . . . 6 . Hover . | . . . . . . . . . . . . . . . . . . . . . . . . . . . . . . . . . . . . Flight . | . . . . . . . . . . . . . . . . . . . . . . . . . . . . . . . . . . . . Utility 106 | 1 1 3 4 . 2 1 1 . 1 2 1 2 3 4 1 2 1 . 3 3 3 2 . 5 . 1 9 3 3 6 7 4 5 8 14 Device 25 | . . 1 1 . . . . . . 2 . . 1 . . . . . 1 1 . . . 1 . 1 2 . . 3 5 . 1 2 3 Storage 10 | 1 1 1 . . 1 . . . . . 1 . . 2 . . . . . . . . . 2 . . . . . . 1 . . . . Processor 9 | . . . . . . . . . . . . . . . . . . . . . . . . . . . 1 . 1 2 . 2 . . 3 Hackware 47 | . . . . . 1 . 1 . . . . 2 2 2 1 2 1 . 1 2 3 2 . 2 . . 6 3 2 . 1 1 3 4 5 Protection 14 | . . 1 3 . . 1 . . 1 . . . . . . . . . 1 . . . . . . . . . . 1 . 1 . 2 3 Artifact 1 | . . . . . . . . . . . . . . . . . . . . . . . . . . . . . . . . . 1 . . Weapon 89 | 2 3 5 17 3 2 1 1 . 1 . . 3 1 2 . . . . 3 3 . . . 2 . 1 2 3 1 1 9 3 12 4 4 Energy Gun 7 | 1 2 2 . . . . . . . . . . . . . . . . . . . . . . . . . . . . 2 . . . . Energy Cannon 23 | . . . 1 1 . . . . 1 . . . 1 . . . . . 1 1 . . . . . . 1 1 . 1 4 . 6 4 . Ballistic Gun 31 | 1 1 2 15 1 1 . . . . . . . . . . . . . . . . . . . . . . . . . 1 2 5 . 2 Ballistic Cannon 3 | . . 1 . . . . . . . . . . . . . . . . . . . . . . . . . . . . 2 . . . . Launcher 2 | . . . . 1 . . . . . . . . . . . . . . 1 . . . . . . . . . . . . . . . . Special Weapon 18 | . . . . . . 1 1 . . . . 2 . 2 . . . . . 2 . . . 2 . 1 1 2 1 . . 1 1 . 1 Impact Weapon 1 | . . . 1 . . . . . . . . . . . . . . . . . . . . . . . . . . . . . . . . Slashing Weapon 1 | . . . . . . . . . . . . . . . . . . . 1 . . . . . . . . . . . . . . . . Piercing Weapon . | . . . . . . . . . . . . . . . . . . . . . . . . . . . . . . . . . . . . Special Melee Weapon 3 | . . . . . 1 . . . . . . 1 . . . . . . . . . . . . . . . . . . . . . . 1 Unidentified Prototypes 37 | . . . 2 . . . . . 2 . . 1 . . . . . . 5 . . . . . . . . . . 1 13 5 2 1 5 Corrupted Parts 3 | . . . . . . . . . . . . . . . . . . . . 2 . . . . . . . . . . . 1 . . . System Corruption 7 | . . . . . . . . . . . . . . . . . . . . 4 . . . . . . . . . . . 3 . . . Parts Lost 100 | . 1 6 1 3 1 1 . . . . 2 2 . 1 . 1 1 . 1 . . . . 6 . 1 1 . 1 6 2 15 11 21 15 Power 25 | . 1 . . 1 . . . . . . . . . 1 . . . . 1 . . . . 1 . . . . . 2 1 4 4 5 4 Propulsion 19 | . . 2 . 1 . . . . . . . . . . . . . . . . . . . 2 . 1 . . 1 1 . 1 2 7 1 Utility 22 | . . . 1 1 . 1 . . . . 1 . . . . 1 . . . . . . . 2 . . 1 . . 2 . 3 2 4 3 Weapon 34 | . . 4 . . 1 . . . . . 1 2 . . . . 1 . . . . . . 1 . . . . . 1 1 7 3 5 7 Highest Loss Streak 11 | . 1 2 1 2 1 1 . . . . 1 1 . 1 . 1 1 . 1 . . . . 1 . 1 1 . 1 2 2 4 4 11 3 To Critical Strikes 2 | . . . . . . . . . . . . . . . . . . . . . . . . 1 . . . . 1 . . . . . . Average Backups 18 | . 13 11 14 14 14 18 18 18 17 17 18 18 21 22 23 22 21 21 22 21 19 21 22 19 21 21 21 20 21 21 20 19 19 19 19 Power . | . . . . . . . . . . . . . . 1 1 1 1 1 1 1 1 1 1 . . 1 1 2 1 1 1 1 . . . Propulsion 2 | . 5 4 4 2 2 2 2 3 2 2 2 2 2 2 2 2 2 2 2 2 2 2 2 1 2 1 1 1 1 1 2 1 . 1 5 Utility 8 | . 2 2 3 2 4 7 8 9 9 9 10 10 12 12 13 12 11 10 10 10 10 13 14 13 12 12 13 9 10 9 9 6 8 11 10 Weapon 4 | . 5 2 3 5 4 4 2 2 2 2 2 2 3 3 4 3 3 4 4 4 4 4 4 4 4 4 5 5 4 3 5 6 6 5 2 Tool/Special . | . . . . . . . . . . . . . . . . . . . . . . . . . . . . . . . . . . . . Unused Backups 67 | . . 2 4 4 . . 1 4 1 4 . . . 4 . . . . 1 5 1 2 . . 2 4 . . 3 1 9 3 2 . 10 Power 7 | . . . . . . . . . . . . . . 1 . . . . . . . . . . 1 . . . 1 . . 1 1 . 2 Propulsion 17 | . . 1 2 2 . . . 1 . 1 . . . . . . . . 1 . . . . . . . . . 1 1 1 1 1 . 4 Utility 32 | . . . 2 1 . . . 3 . 3 . . . 2 . . . . . 5 1 2 . . 1 4 . . 1 . 4 . . . 3 Weapon 6 | . . 1 . 1 . . . . . . . . . . . . . . . . . . . . . . . . . . 3 . . . 1 Tool/Special 5 | . . . . . . . 1 . 1 . . . . 1 . . . . . . . . . . . . . . . . 1 1 . . . Average Slot Usage (%) 79 | . 84 90 95 98 99 100 95 95 90 91 81 72 63 65 66 66 62 64 63 63 64 68 68 67 68 68 65 70 70 70 77 76 81 81 92 Engine 5 | . 13 14 8 8 9 9 7 7 7 7 7 7 8 13 13 13 11 6 4 . . . . . . . . 2 2 . . . . . . Reactor 5 | . . . . . . . . . . . . . . . . . . 3 5 11 9 9 9 9 10 10 9 6 8 12 12 12 9 11 13 Treads 12 | . 27 27 26 26 27 27 23 18 15 11 7 6 . . . . . . 1 11 11 13 13 12 10 10 9 9 9 6 7 7 10 6 . Leg 1 | . . . . . . . . . . . . . . . . . . . . . . . . . . . . . . . . . . 6 23 Wheel 2 | . . . . . . . . . . 2 7 8 13 13 13 13 10 11 9 . . . . . . . . . . 2 . . . 4 . Device 6 | . . 4 3 9 8 9 4 7 7 6 7 3 6 9 1 5 5 5 3 8 10 5 4 . . 4 8 2 2 8 10 8 7 11 9 Storage 6 | . 14 12 9 9 9 9 7 7 7 7 7 7 6 6 6 6 5 5 7 6 4 4 4 8 10 10 5 4 4 4 4 4 4 4 4 Hackware 10 | . . . . . . . 2 . . . . 10 11 8 18 13 15 17 15 11 12 11 13 16 21 16 18 29 29 25 17 16 10 15 15 Protection 3 | . . 1 10 8 8 9 7 7 7 7 4 . . . . . . . . . 1 4 4 . . . . . . 1 4 3 4 3 2 Energy Gun 1 | . 22 13 . . . . . . . . . . . . . . . . . . . . . . . . . . . . 4 3 . . . Energy Cannon 2 | . . . . 1 . 3 2 7 6 6 5 4 3 2 . 1 1 . 1 1 . . . . 1 . . . . . 5 5 13 10 6 Ballistic Gun 10 | . 5 5 34 33 35 32 37 38 36 38 31 14 . . . . . . . . . . . . . . . . . . . 3 6 . 1 Special Weapon 1 | . . . . . . . . . . . . 4 2 3 6 4 2 5 3 2 3 4 4 3 3 3 2 3 2 1 3 2 . 1 2 Special Melee Weapon 2 | . . . . . . . . . . . . 1 6 6 6 6 5 5 5 5 4 4 4 4 5 5 4 4 4 3 . . . . 2 Peak Build Rating 219 | 6 9 21 42 44 44 46 54 65 70 72 69 108 113 114 111 114 120 124 170 170 212 212 208 208 178 180 198 191 196 212 205 216 200 194 219 Average Rating 122 | 3 8 13 34 42 43 44 49 60 68 69 63 68 109 111 107 112 118 122 127 165 184 207 207 185 176 177 192 188 188 195 188 201 182 167 195 On Entrance 117 | . 6 9 21 41 43 44 45 54 65 70 69 56 102 113 111 105 114 119 124 170 162 206 207 208 178 176 180 195 190 192 136 203 167 174 162 Avg Prop Armor Cover (%) 7 | . . . . . . . . . . 5 10 3 . . . . . . . . . . . . . . . 12 . 14 . . . 7 . Naked Turns . | . . . . . . . . . . . . . . . . . . . . . . . . . . . . . . . . . . . . Heaviest Build 233 | 11 31 56 82 75 113 117 121 121 123 129 123 153 166 177 165 175 175 180 185 185 212 207 199 199 181 183 189 175 193 223 229 231 233 225 194 Greatest Support 210 | 40 40 40 60 60 60 60 60 95 103 103 75 75 40 40 40 40 56 56 180 180 210 210 210 210 180 180 180 180 180 170 170 170 170 178 184 Greatest Overweight (x) 13 | . . 1 1 1 1 1 2 2 1 10 10 3 4 4 4 4 3 3 3 1 1 . . . 1 1 1 1 1 9 1 1 2 13 1 Average Overweight (x) 1 | . . . 1 . 1 1 1 1 1 3 9 1 3 3 4 4 2 3 2 . . . . . . . . . . 3 . . . 2 . Largest Inventory Capacity 25 | 8 15 20 20 20 25 25 25 25 25 25 25 25 25 25 25 25 25 25 25 25 25 25 25 25 25 25 25 25 25 25 25 25 25 25 25 Average Capacity 23 | 6 14 14 20 20 22 25 25 25 25 25 25 25 25 25 25 25 25 25 25 25 25 25 25 25 25 25 25 25 25 25 25 25 25 25 25 Most Carried 25 | . 15 20 20 20 22 25 25 25 25 25 25 25 25 25 25 25 25 23 25 25 25 25 25 25 25 25 25 25 25 25 25 25 25 25 25 Average Carried 22 | . 13 13 19 19 20 24 24 24 24 24 24 24 23 24 25 24 21 22 24 24 22 24 25 23 24 24 23 23 24 24 24 22 21 21 22 Final Capacity 25 | 8 15 20 20 20 25 25 25 25 25 25 25 25 25 25 25 25 25 25 25 25 25 25 25 25 25 25 25 25 25 25 25 25 25 25 25 Final Carried 25 | . 15 20 20 20 22 25 25 25 25 25 25 24 25 25 25 25 20 23 24 25 22 25 25 25 25 25 22 25 25 23 25 17 25 16 21 Class Distribution -------------------- 42% | Botlord-Mutant 12% | Tank 11% | Bothacker-Executioner 9% | Botlord-Executioner 9% | Mutant 3% | Scavenger-Executioner 3% | Botlord-Gunner Dominant Class ---------------- Mutant | -10/Materials Mutant | -10/Subcaves Tank | -8/Materials Tank | -8/Garrison Tank | -8/Materials Bothacker-Tank | -8/Garrison Bothacker-Executioner | -7/Factory Bothacker-Executioner | -7/Garrison Bothacker-Executioner | -7/Factory Bothacker-Executioner | -7/Garrison Bothacker-Executioner | -7/Factory Bothacker-Tank | -7/Garrison Botlord-Mutant | -6/Factory Botlord-Mutant | -6/Garrison Botlord-Mutant | -6/Factory Botlord-Mutant | -6/Garrison Botlord-Mutant | -5/Factory Botlord-Mutant | -5/Garrison Botlord-Mutant | -5/Factory Botlord-Mutant | -5/Garrison Botlord-Mutant | -4/Factory Botlord-Mutant | -4/Garrison Botlord-Mutant | -4/Factory Botlord-Mutant | -4/Garrison Botlord-Mutant | -4/Factory Botlord-Mutant | -4/Garrison Botlord-Mutant | -3/Research Botlord-Mutant | -3/Quarantine Botlord-Mutant | -3/Garrison Botlord-Mutant | -2/Research Botlord-Executioner | -2/Testing Botlord-Executioner | -2/Section 7 Botlord-Executioner | -2/Garrison Botlord-Gunner | -1/Access Botlord-Gunner | -1/Command Resources | -11 -10 -10 -8 -8 -8 -8 -7 -7 -7 -7 -7 -7 -6 -6 -6 -6 -5 -5 -5 -5 -4 -4 -4 -4 -4 -4 -3 -3 -3 -2 -2 -2 -2 -1 -1 ----------- Run | Yrd Mat Sub Mat Gar Mat Gar Fac Gar Fac Gar Fac Gar Fac Gar Fac Gar Fac Gar Fac Gar Fac Gar Fac Gar Fac Gar Res Qua Gar Res Tes Sec Gar Acc Com Matter Collected 41341 | 241 306 397 1717 1302 938 962 96 597 394 1561 533 426 315 2353 267 1385 1237 924 1988 2127 2394 1216 102 2755 87 1623 2702 1207 856 1012 706 2945 1820 1077 773 Remotely . | . . . . . . . . . . . . . . . . . . . . . . . . . . . . . . . . . . . . Salvage Created 24492 | . 737 349 1985 1427 1059 849 96 782 296 1729 567 348 22 606 . 96 281 . 313 130 245 295 . 256 . 153 185 . 366 606 648 4020 2270 2169 1607 Parts 1112 | . 50 22 102 73 62 54 9 34 14 88 24 25 . 17 . 6 8 . 8 10 18 11 . 10 . 5 7 . 9 22 43 175 81 80 45 Haulers Intercepted 16 | . 2 . 6 . 3 . . . 1 . . . . . . . . . . . . . . . . . . . . . . 1 . 3 . Recyclers Shooed 8 | . . . 1 . . . . . 1 . . . 2 . . . 1 . 1 . . . . . . . 1 . . . . . . . 1 Parts Field Recycled . | . . . . . . . . . . . . . . . . . . . . . . . . . . . . . . . . . . . . Retrieved Matter . | . . . . . . . . . . . . . . . . . . . . . . . . . . . . . . . . . . . . Parts Self-Destructed 18 | . . 18 . . . . . . . . . . . . . . . . . . . . . . . . . . . . . . . . . Prevented 2 | . . 2 . . . . . . . . . . . . . . . . . . . . . . . . . . . . . . . . . Parts Restored . | . . . . . . . . . . . . . . . . . . . . . . . . . . . . . . . . . . . . Kills | -11 -10 -10 -8 -8 -8 -8 -7 -7 -7 -7 -7 -7 -6 -6 -6 -6 -5 -5 -5 -5 -4 -4 -4 -4 -4 -4 -3 -3 -3 -2 -2 -2 -2 -1 -1 ------- Run | Yrd Mat Sub Mat Gar Mat Gar Fac Gar Fac Gar Fac Gar Fac Gar Fac Gar Fac Gar Fac Gar Fac Gar Fac Gar Fac Gar Res Qua Gar Res Tes Sec Gar Acc Com Combat Hostiles Destroyed 376 | . 19 8 38 28 19 23 1 3 3 28 11 10 1 1 . . . . . 6 6 1 . 2 . 2 4 . . 5 13 55 36 25 28 Melee 7 | . . . . . . . . . . . . . . . . . . . . . 3 1 . 2 . . . . . . . 1 . . . Guns 231 | . 16 6 38 25 19 23 1 3 3 28 11 7 . . . . . . . . . . . . . . . . . . 2 32 14 . 3 Cannons 75 | . . 1 . . . . . . . . . . 1 . . . . . . 1 . . . . . . 3 . . 2 10 18 9 15 15 AOE 48 | . 3 . . 3 . . . . . . . 3 . 1 . . . . . 4 3 . . . . 2 . . . . . 2 11 7 9 Classes Destroyed 28 | . 4 2 7 2 . 2 . . . . . . . . . . . . . . . . . . . 1 1 . . 1 2 5 . . 1 Worker 18 | . . . 2 . 1 . . . . . . . . . . . 1 . . . 2 . . . . . 2 . . 1 2 . . 7 . Builder 13 | . . . 1 . . . . . 1 . . . . . . . . . . . . . . . . . . . . 1 2 4 . 4 . Tunneler 2 | . . . 1 . . . . . . . . . . . . . . . . . 1 . . . . . . . . . . . . . . Hauler 16 | . 2 . 6 . 3 . . . 1 . . . . . . . . . . . . . . . . . . . . . . 1 . 3 . Recycler 11 | . . . 2 . . . . . 1 . . . . . . . 2 . 2 . 1 . . . . . . . . 1 . . . 1 1 Mechanic 2 | . . . . . . . . . . . . . . . . . . . . . . . . . . . . . . . 1 . . 1 . Operator 5 | . . . 1 . 1 . 1 . . . . . . . . . . . . . . . . . . . . . . . . 1 . . 1 Watcher 12 | . 2 . 3 . 1 . . . . 1 . . . . . . . . . . 1 . . . . . . . . . 1 1 . 2 . Swarmer 77 | . 6 . 8 7 4 6 . . . 6 2 3 1 1 . . . . . 2 6 . . 2 . . . . . . . . 12 . 11 Cutter 2 | . . . . . . 2 . . . . . . . . . . . . . . . . . . . . . . . . . . . . . Saboteur 1 | . . . . . . . . . . . . . . . . . . . . . . . . . . . . . . . . . . . 1 Grunt 115 | . 13 . 20 13 5 10 . . . 7 4 2 . . . . . . . 1 . . . . . . 1 . . . 1 15 9 9 5 Brawler 7 | . . . 1 . . . . . . . . . . . . . . . . 1 . . . . . . . . . . . 3 . 1 1 Duelist 4 | . . . 1 1 . . . . . . . . . . . . . . . . . . . . . . . . . . . 1 . 1 . Protector 1 | . . . . . . . . . . . . . . . . . . . . . . . . . . . . . . . . 1 . . . Researcher 1 | . . . . . . . . . . . . . . . . . . . . . . . . . . . . . . . . 1 . . . Sentry 56 | . . 1 8 5 9 1 1 2 1 6 3 . . . . . . . 1 . . 1 . . . . . . . . . 6 5 5 1 Demolisher 4 | . . . . . . . . . . . . . . . . . . . . . . . . . . . 3 . . . . . . . 1 Specialist 11 | . . . . 1 . . . . . 1 . . . . . . . . . . . . . . . 2 . . . . 2 2 2 . 1 Hunter 21 | . . . . 1 1 . . . . 3 1 . . . . . . . . 2 . . . . . . . . . 3 . 3 4 2 1 Programmer 47 | . . . . . . 4 . 1 2 5 1 5 . . . . . . . . . . . . . . . . . 1 8 12 4 1 3 Heavy 2 | . . . . . . . . . . . . . . . . . . . . . . . . . . . . . . 1 . 1 . . . Q-Series 3 | . . . . . . . . . . . . . . . . . . . . . . . . . . . . . . . . 1 . 2 . Behemoth 3 | . . . . . . . . . . . . . . . . . . . . . . . . . . . . . . . . 2 1 . . S7 Guard 2 | . . . . . . . . . . . . . . . . . . . . . . . . . . . . . . . . 2 . . . Tracker 6 | . . . . . . . . . . . . . . . . . . . . . . . . . . . . . . . . 4 . 2 . Combat Programmer 7 | . . . . . . . . . . . . . . . . . . . . . . . . . . . . . . . . 4 . 2 1 Striker 1 | . . . . . . . . . . . . . . . . . . . . . . . . . . 1 . . . . . . . . . Executioner 4 | . . . . . . . . . . . . . . . . . . . . . . . . . . . . . . . . 2 . . 2 Alpha 7 1 | . . . . . . . . . . . . . . . . . . . . . . . . . . . . . . . 1 . . . . Protovariant G 1 | . . . . . . . . . . . . . . . . . . . . . . . . . . . . . . . 1 . . . . Subdweller 7 | . . 7 . . . . . . . . . . . . . . . . . . . . . . . . . . . . . . . . . Best Kill Streak 8 | . 4 2 8 7 4 4 1 2 2 5 2 5 1 1 . . 2 . 2 4 6 1 . 2 . 2 2 . . 3 4 6 6 7 6 Combat Bots Only 7 | . 4 2 4 7 4 4 1 2 1 5 2 5 1 1 . . . . . 4 3 1 . 2 . 2 2 . . 3 3 6 6 4 6 Max Kills in Single Turn 5 | . 2 1 2 3 2 2 1 2 1 2 1 2 1 1 . . 1 . 1 3 4 1 . 1 . 3 1 . . 1 1 3 4 5 4 Gunslinging 1 | . . . 1 1 1 1 . 1 . 1 . . . . . . . . . . . . . . . . . . . . . . 1 . . Exploded 4 | . 2 . . 3 . . . . . . . 2 . 1 . . . . . 3 3 . . . . 2 . . . . . 1 4 3 4 Melee 1 | . . . . . . . . . . . . . . . . . . . . . 1 1 . 1 . . . . . . . 1 . . . Uniques/NPCs Destroyed . | . . . . . . . . . . . . . . . . . . . . . . . . . . . . . . . . . . . . Combat | -11 -10 -10 -8 -8 -8 -8 -7 -7 -7 -7 -7 -7 -6 -6 -6 -6 -5 -5 -5 -5 -4 -4 -4 -4 -4 -4 -3 -3 -3 -2 -2 -2 -2 -1 -1 -------- Run | Yrd Mat Sub Mat Gar Mat Gar Fac Gar Fac Gar Fac Gar Fac Gar Fac Gar Fac Gar Fac Gar Fac Gar Fac Gar Fac Gar Res Qua Gar Res Tes Sec Gar Acc Com Hostile Shots Fired 2991 | . 47 44 93 80 61 54 18 29 21 209 68 62 38 78 . 8 10 15 28 50 111 17 10 209 4 41 47 30 26 89 79 552 222 332 209 Missed 893 | . 21 10 22 19 21 18 8 9 10 60 24 17 15 27 . 4 5 3 6 16 30 5 4 42 2 17 17 9 9 31 21 189 61 63 78 Hits 2098 | . 26 34 71 61 40 36 10 20 11 149 44 45 23 51 . 4 5 12 22 34 81 12 6 167 2 24 30 21 17 58 58 363 161 269 131 Melee 18 | . . . 2 1 . . . . . . . . . 2 . . . . . 1 . . . . . 5 . . . . . 5 . 1 1 Projectile 2080 | . 26 34 69 60 40 36 10 20 11 149 44 45 23 49 . 4 5 12 22 33 81 12 6 167 2 19 30 21 17 58 58 358 161 268 130 AOE 90 | . . . . . . 3 . . . . . . . . . 1 . . . . . 2 . . . . 15 . . . . 1 . 53 15 Critical Strikes 116 | . . 2 . 2 1 1 . . . 3 . 2 . 2 . 1 . . 1 5 2 . . 6 . 3 3 . 2 2 3 25 5 31 14 Actively Blocked 54 | . . . . . . . . . . . . . . . . . . . . . . . . . . . . . . . 2 23 3 23 3 Part Disruptions 6 | . . . . . . . . . . . . . . . . . . . . . . . . . . 1 . 2 . . . 1 1 . 1 Damage Taken 41292 | . 318 768 1094 873 459 535 71 100 209 1108 464 534 301 718 8 163 266 154 429 618 1417 315 89 2529 127 808 1537 669 689 1758 1324 6588 3860 6560 3832 Core 4391 | . 23 145 84 65 38 82 6 11 . 130 23 35 72 133 8 18 40 54 157 96 292 23 . 394 102 110 210 54 39 254 47 583 167 414 482 Absorbed by Shields 6859 | . . . . . . 34 . 74 . 502 . 59 . 125 . 117 46 94 82 236 834 42 . 513 . 51 163 133 42 532 11 2384 338 . 447 Reduced by Siege Mode 13 | . . . . . . . . . . . . . . . . . . . . . . . . . . . . . . . . . . 13 . Redirected to Shielding 34 | . . . . . . . . . . . . . . . . . . . . . . . . . . . . . . . . . . 24 10 Ignored by Resistances 138 | . . . . 21 68 . . . . . . . . . . . . . . . . . . . . . . . . . . . . . 49 Regen/Repaired (Parts) 9075 | . 64 . . . 229 . . . 326 . 149 . 51 196 . 176 209 17 72 149 200 57 . 607 32 225 399 90 305 126 . 984 1324 3055 33 Core Remaining (%) 53 | 100 . 32 . . . 51 . . . . . 70 . . . 72 . . . 65 . . . . . 19 . . 76 . . . 22 . 25 Volleys Fired 1665 | . 47 57 92 82 49 59 12 21 12 76 29 27 20 62 13 31 33 . 25 27 24 1 . 23 9 17 58 19 8 43 71 252 76 88 202 Largest 6 | . 2 2 4 4 4 4 5 5 6 6 5 3 1 1 1 1 1 . 1 1 1 1 . 1 1 1 1 1 1 1 2 3 6 4 3 Hottest 720 | . 90 90 116 100 100 100 125 125 155 155 130 80 85 90 30 90 85 . 113 90 113 7 . 90 88 88 113 120 10 120 200 320 720 480 330 Shots Fired 3479 | . 94 106 362 294 189 208 24 105 63 380 120 60 20 62 13 31 33 . 25 28 24 1 . 23 10 17 59 19 8 44 79 320 268 160 230 Gun 2344 | . 94 77 353 283 189 198 15 105 59 378 118 51 . . . . . . . . . . . . . . . . . . 16 185 178 . 45 Cannon 789 | . . 29 9 10 . 10 6 . 4 2 2 4 16 45 . 8 16 . 19 9 2 . . 1 4 3 20 2 . 31 47 107 86 133 164 Launcher 19 | . . . . 1 . . . . . . . 1 . 1 . . . . . 3 1 . . . . 1 . . . . . . 4 4 3 Special 327 | . . . . . . . 3 . . . . 4 4 16 13 23 17 . 6 16 21 1 . 22 6 13 39 17 8 13 16 28 . 23 18 Kinetic 2245 | . 32 35 362 283 189 198 15 105 59 378 118 51 . . . . . . . . . . . . . . . . . . 15 179 162 19 45 Thermal 686 | . . . . 10 . 10 6 . 4 2 2 4 16 46 10 15 16 . 19 4 2 . . 1 . . 6 2 . 20 48 87 96 114 146 Explosive 19 | . . . . 1 . . . . . . . 1 . 1 . . . . . 3 1 . . . . 1 . . . . . . 4 4 3 Electromagnetic 220 | . 62 71 . . . . . . . . . . . . . . . . . 5 . . . . 4 3 14 . . 11 . 26 6 . 18 Robot Hit Streak 57 | . 13 30 14 22 7 11 11 57 7 43 9 13 3 18 9 8 17 . 5 8 22 3 . 17 24 13 11 7 11 8 18 15 19 17 33 Robot Miss Streak 8 | . 4 3 8 4 5 5 1 3 5 3 4 4 2 1 1 2 2 . 1 2 2 . . 1 2 1 2 2 . 3 3 5 6 5 6 Penetration Max 2 | . . . . . . . . . . . . . . . . . . . . . . . . . . . . . . . 2 1 . . 2 Secondary Targets 41 | . 2 . 3 9 5 4 . 1 . 10 1 2 . . . . . . . . . . . . . . . . . . . 2 2 . . Max Gunslinging Chain 1 | . 1 . 1 1 1 1 . 1 . 1 1 1 . . . . . . . . . . . . . . . . . . . 1 1 . . Capacitor 161 | . . . . . . . . . . . . . . . . . . . . . . . . . . . 20 . . 4 . . . . 137 Shots Hit Robots 2287 | . 68 70 202 190 112 92 13 81 27 255 66 34 13 54 11 21 26 . 20 19 37 18 . 29 8 16 46 11 23 35 54 246 125 98 167 Core Hits 1012 | . 43 25 107 78 40 41 6 39 13 91 27 12 1 18 1 4 6 . 5 8 11 4 . 5 . 9 7 . 4 9 19 143 76 63 97 Critical Kills 35 | . . . . 3 1 1 . 1 . . . . . . . . . . 1 . . . . . . . . . . 1 2 22 2 1 . Critical Parts Destroyed 51 | . . . 3 . . 1 . . 1 2 . . . . . . . . . . . . . . . . . . . . 2 40 1 . 1 Critical Strikes 104 | . . 1 3 3 1 2 . 1 1 2 . . . . . . . . 1 . . 1 . . . . 1 . . 2 5 70 4 5 1 Burn 1 | . . . . . . . . . . . . . . . . . . . . . . . . . . . . . . . 1 . . . . Meltdown 4 | . . . . . . . . . . . . . . . . . . . 1 . . . . . . . . . . 1 1 . . 1 . Destroy 90 | . . 1 3 3 1 2 . 1 1 2 . . . . . . . . . . . . . . . . . . . . 3 68 4 . 1 Blast 6 | . . . . . . . . . . . . . . . . . . . . . . . . . . . . . . . . 2 . 4 . Corrupt 1 | . . . . . . . . . . . . . . . . . . . . . . . . . . . . . . 1 . . . . . Sever 2 | . . . . . . . . . . . . . . . . . . . . . . 1 . . . . 1 . . . . . . . . Melee Attacks 137 | . . . 1 . 3 . . . . . . . . . . . . . . 1 31 19 . 18 . 5 4 2 20 8 6 18 . . 1 Impact 1 | . . . 1 . . . . . . . . . . . . . . . . . . . . . . . . . . . . . . . . Slashing 132 | . . . . . . . . . . . . . . . . . . . . 1 31 19 . 18 . 5 4 2 20 8 6 18 . . . Piercing . | . . . . . . . . . . . . . . . . . . . . . . . . . . . . . . . . . . . . Sneak Attacks 13 | . . . . . 3 . . . . . . . . . . . . . . . 1 . . . . . . . . 5 1 3 . . . Combat Hostiles . | . . . . . . . . . . . . . . . . . . . . . . . . . . . . . . . . . . . . Follow-up Attacks . | . . . . . . . . . . . . . . . . . . . . . . . . . . . . . . . . . . . . Damage Inflicted 71945 | . 1194 1145 3794 2838 1893 1644 218 1457 563 4448 1244 828 275 1565 69 154 375 . 520 1244 1021 1568 . 1073 137 620 617 . 1666 1393 3787 12225 5635 8786 7949 Guns 27469 | . 919 788 3364 2639 1893 1644 203 1457 498 4318 1166 605 . . . . . . . . . . . . . . . . . . 327 3932 2057 . 1659 Cannons 26350 | . . 234 74 . . . . . 55 27 54 27 275 1267 . 123 375 . 520 174 . . . . 137 78 522 . . 805 2624 5912 2239 6086 4742 Explosions 11129 | . 262 123 279 199 . . . . . . . 196 . 298 . . . . . 1070 322 . . . . 542 . . . . 607 1766 1306 2700 1459 Melee 6281 | . . . . . . . . . . . . . . . . . . . . . 699 1568 . 1032 . . 40 . 1666 588 188 500 . . . Ramming 616 | . 13 . 77 . . . 15 . 10 103 24 . . . . . . . . . . . . 41 . . 55 . . . 41 115 33 . 89 Kinetic 30014 | . 226 264 3438 2639 1893 1644 203 1457 498 4318 1166 605 . . . . . . . . . . . . . . . . . . 622 5928 1766 1688 1659 Thermal 24315 | . 262 123 . . . . . . 55 27 54 27 275 1267 69 154 375 . 520 . . . . . . . 126 . . 455 2862 5220 2400 5429 4615 Explosive 7047 | . . . 279 199 . . . . . . . 196 . 298 . . . . . 1070 322 . . . . 542 . . . . 74 135 1199 1611 1122 Electromagnetic 3672 | . 693 758 . . . . . . . . . . . . . . . . . 174 . . . . 137 78 396 . . 350 . 327 237 58 464 Impact . | . . . . . . . . . . . . . . . . . . . . . . . . . . . . . . . . . . . . Slashing 6281 | . . . . . . . . . . . . . . . . . . . . . 699 1568 . 1032 . . 40 . 1666 588 188 500 . . . Piercing . | . . . . . . . . . . . . . . . . . . . . . . . . . . . . . . . . . . . . Highest Corruption 38 | . 2 2 . . . 1 . . . 3 9 12 1 1 1 1 . . 3 14 . . . 3 3 6 3 7 10 6 16 38 38 . . Average Corruption 8 | . 2 2 . . . 1 . . . 2 5 11 1 1 1 1 . . 2 8 . . . 2 3 5 2 5 9 4 13 24 38 . . Corruption Purged . | . . . . . . . . . . . . . . . . . . . . . . . . . . . . . . . . . . . . Corruption Blocked . | . . . . . . . . . . . . . . . . . . . . . . . . . . . . . . . . . . . . Effects 797 | . 16 41 . . . 10 . . . 21 34 28 2 9 3 11 . . 4 50 . . . 20 12 33 41 19 55 2 92 176 118 . . Message Errors 190 | . 4 12 . . . 3 . . . 6 7 9 1 2 . 2 . . 1 14 . . . 7 4 8 13 10 15 1 21 30 20 . . Matter Fused 173 | . 3 8 . . . . . . . 6 7 6 . 2 2 4 . . 1 7 . . . 4 3 9 12 5 12 . 22 38 22 . . Heat Flow Errors 78 | . 3 5 . . . 1 . . . . 4 4 . . . 2 . . 1 4 . . . 2 . 3 2 1 7 . 7 20 12 . . Energy Discharges 91 | . 2 6 . . . . . . . 2 4 3 1 3 . 1 . . . 10 . . . 2 . 3 4 2 6 . 9 25 8 . . Parts Rejected 10 | . . 1 . . . . . . . . 1 . . . . . . . . . . . . 1 . . . . . . 1 5 1 . . Parts Fused 5 | . . . . . . 1 . . . . . . . . . . . . . . . . . . . . . . 1 . . 2 1 . . Data Loss (minor) 110 | . 3 4 . . . 2 . . . 2 3 3 . 2 1 2 . . 1 10 . . . 1 2 5 6 1 10 . 17 20 15 . . Data Loss (major) 50 | . 1 3 . . . 1 . . . 1 3 . . . . . . . . 4 . . . 1 2 3 3 . 4 . 4 10 10 . . Misfires 25 | . . 2 . . . 1 . . . 1 1 2 . . . . . . . 1 . . . . 1 . 1 . . 1 5 8 1 . . Alerts 13 | . . . . . . . . . . . 2 . . . . . . . . . . . . 2 . 2 . . . . 2 3 2 . . Misdirections 7 | . . . . . . . . . . . . . . . . . . . . . . . . . . . . . . . 2 4 1 . . Weapon Failures 45 | . . . . . . 1 . . . 3 2 1 . . . . . . . . . . . . . . . . . . 2 11 25 . . Overload Shots 6 | . . . . . . . . . . . . . . 2 . 1 . . . 2 . . . 1 . . . . . . . . . . . Overflow Damage 2842 | . . . 41 66 . . . . 3 2 . 30 6 13 . . . . 5 . 5 85 . 71 . 4 2 . 181 156 636 624 38 654 220 Projectiles 1674 | . . . . . . . . . 3 . . . 6 2 . . . . 5 . . . . . . . . . . 18 620 333 38 558 91 Explosions 509 | . . . 41 66 . . . . . . . 30 . 11 . . . . . . . . . . . 4 . . . . 7 159 . 96 95 Melee 659 | . . . . . . . . . . 2 . . . . . . . . . . 5 85 . 71 . . 2 . 181 138 9 132 . . 34 Knockbacks 21 | . . 1 1 . . . . . . 1 . . . . . . . . . . . . . . . . . . . . 4 9 . 5 . Impact 2 | . . . 1 . . . . . . 1 . . . . . . . . . . . . . . . . . . . . . . . . . Kinetic 17 | . . 1 . . . . . . . . . . . . . . . . . . . . . . . . . . . . 2 9 . 5 . Secondary 2 | . . . . . . . . . . . . . . . . . . . . . . . . . . . . . . . 2 . . . . Self-Inflicted Damage 510 | . . . 64 51 . . . . . . 11 22 . . . . . . . . . . . . . . . . . . . 61 72 145 84 Shots 12 | . . . 1 1 . . . . . . . 1 . . . . . . . . . . . . . . . . . . . 3 1 4 1 Rammed 49 | . 7 . 5 . . . 2 . 1 12 2 . . . . . . . . . . . . 2 . . 3 . . . 2 10 3 . . Targets Rammed 56 | . 7 . 6 . . . 2 . 1 13 2 . . . . . . . . . . . . 3 . . 4 . . . 3 10 3 . 2 Kicked 2 | . . . . . . . . . . . . . . . . . . . . . . . . . . . . . . . . . . . 2 Crushed 5 | . . . 1 . . . . . . 1 . . . . . . . . . . . . . 1 . . 1 . . . 1 . . . . Highest Temperature 584 | . 235 217 361 217 145 313 101 240 191 447 181 219 . . . 240 228 . 340 236 96 10 . 289 112 270 335 124 278 220 207 381 574 584 8 Average Temperature 90 | . 57 79 61 74 54 55 57 83 66 118 49 109 . . . 80 68 . 138 81 47 10 . 81 48 113 115 65 106 52 61 109 153 140 4 Received Heat Transfer 4472 | . 126 201 432 378 135 177 18 22 30 259 129 32 48 112 . 26 32 8 85 109 164 47 . 623 21 34 38 36 25 81 63 377 263 243 98 Effects 40 | . . . . . . . . . . 3 . . . . . 1 . . 1 . . . . . . . 5 . . . . 5 15 10 . Shutdowns 18 | . . . . . . . . . . . . . . . . . . . 1 . . . . . . . . . . . . 3 8 6 . Energy Bleed 2 | . . . . . . . . . . . . . . . . 1 . . . . . . . . . . . . . . . 1 . . . Interference 12 | . . . . . . . . . . 3 . . . . . . . . . . . . . . . . 5 . . . . . 4 . . Matter Decay 3 | . . . . . . . . . . . . . . . . . . . . . . . . . . . . . . . . 1 2 . . Short Circuit 1 | . . . . . . . . . . . . . . . . . . . . . . . . . . . . . . . . . 1 . . Damage (major) 4 | . . . . . . . . . . . . . . . . . . . . . . . . . . . . . . . . . . 4 . Siege Activations 1 | . . . . . . . . . . . . . . . . . . . . . . . . . . . . . . . . . . 1 . Total Turns 12 | . . . . . . . . . . . . . . . . . . . . . . . . . . . . . . . . . . 12 . Longest Duration 12 | . . . . . . . . . . . . . . . . . . . . . . . . . . . . . . . . . . 12 . Martial Activations . | . . . . . . . . . . . . . . . . . . . . . . . . . . . . . . . . . . . . Shielding Activations . | . . . . . . . . . . . . . . . . . . . . . . . . . . . . . . . . . . . . Robots Disrupted 5 | . 1 1 . . . . . . . . . . . . . . . . . . . . . . . . . . . . . . . 1 2 Combat Hostiles 4 | . . 1 . . . . . . . . . . . . . . . . . . . . . . . . . . . . . . . 1 2 Robots Corrupted 9 | . . 1 . . . . . . . . . . . . . . . . . 1 . . . . . . 1 . . 2 . 2 1 . 1 Combat Hostiles 9 | . . 1 . . . . . . . . . . . . . . . . . 1 . . . . . . 1 . . 2 . 2 1 . 1 Parts Fried 16 | . 2 5 . . . . . . . . . . . . . . . . . 1 . . . . . . 2 . . 2 . 2 1 . 1 Impact Corruptions 3 | . . . . . . . . . . 1 . . . . . . . . . . . . . . . . 1 . . . . . . . 1 Robots Melted 7 | . . . . . . . . . . . . . . . . . . . 1 . . . . . . . . . . 1 1 . 1 3 . Combat Hostiles 6 | . . . . . . . . . . . . . . . . . . . . . . . . . . . . . . 1 1 . 1 3 . Parts Melted 26 | . 1 1 . . . . . . . . . 2 . . . . 2 . . . . . . . . . . . . 2 3 4 7 4 . Heat Transferred 14650 | . 300 100 . . . . . . 74 17 74 37 333 1567 200 211 426 . 536 . . . . . . . 111 . . 332 2032 3435 1659 3066 140 Parts Sabotaged 2 | . . . . . . . . . . . . . . . . . . . . . . . . . . . . . . . . . . . 2 Parts Stolen . | . . . . . . . . . . . . . . . . . . . . . . . . . . . . . . . . . . . . Parts Stripped . | . . . . . . . . . . . . . . . . . . . . . . . . . . . . . . . . . . . . Power Chain Reactions 10 | . 4 1 . . . . . . . . . . . . . . . . . . . . . . . . . . . . . . . 2 3 Alert | -11 -10 -10 -8 -8 -8 -8 -7 -7 -7 -7 -7 -7 -6 -6 -6 -6 -5 -5 -5 -5 -4 -4 -4 -4 -4 -4 -3 -3 -3 -2 -2 -2 -2 -1 -1 ------- Run | Yrd Mat Sub Mat Gar Mat Gar Fac Gar Fac Gar Fac Gar Fac Gar Fac Gar Fac Gar Fac Gar Fac Gar Fac Gar Fac Gar Res Qua Gar Res Tes Sec Gar Acc Com Maximum Alert Level 5 | . 1 . 2 4 3 3 2 1 1 3 2 2 1 3 2 5 4 4 2 3 3 2 1 2 1 4 4 2 4 2 2 4 5 4 5 Low Security (%) 28 | 100 98 . 71 4 15 4 33 77 63 13 . 3 86 27 57 16 . . . . 15 . 80 61 70 25 . . . 94 50 37 . . . Level 1 18 | . 1 . 26 14 55 8 1 22 36 22 51 32 13 8 19 16 . . 28 10 65 40 19 15 29 5 . 51 4 . 22 12 . . . Level 2 20 | . . . 1 38 27 14 64 . . 29 48 64 . 56 22 23 . . 71 15 15 59 . 23 . 27 28 48 28 5 27 17 . . . Level 3 17 | . . . . 28 1 72 . . . 34 . . . 8 . 10 76 14 . 73 2 . . . . 32 42 . 54 . . 14 18 16 30 Level 4 11 | . . . . 14 . . . . . . . . . . . 28 24 85 . . . . . . . 8 28 . 11 . . 18 20 83 43 Level 5 2 | . . . . . . . . . . . . . . . . 5 . . . . . . . . . . . . . . . . 61 . 9 High Security . | . . . . . . . . . . . . . . . . . . . . . . . . . . . . . . . . . . . 16 Max Security . | . . . . . . . . . . . . . . . . . . . . . . . . . . . . . . . . . . . . Peak Influence 2684 | . 261 . 415 1482 722 1039 545 374 272 1000 525 525 275 844 631 1666 1206 1308 519 907 839 605 317 579 397 1200 1372 646 1150 646 533 1302 2235 1583 2684 Initial 1340 | . . . . 110 722 172 545 31 196 140 525 221 275 23 443 56 874 828 667 345 476 273 317 34 303 56 675 646 325 646 15 279 945 1340 988 Average 562 | . 78 . 116 750 322 757 334 190 175 535 405 399 54 431 243 759 1017 1197 431 737 320 448 86 190 138 629 923 422 748 106 250 510 1621 1294 1381 Influence Increases 32121 | . 632 20 1129 1432 691 917 53 343 587 880 393 384 264 1031 239 1720 1143 605 461 742 1906 352 72 724 657 1374 2376 643 895 622 1122 2401 1480 1228 2603 Destroy 0b10 Robot/C 13080 | . 380 20 760 720 460 500 20 60 200 580 260 240 180 500 80 700 300 300 180 240 540 100 20 100 120 460 900 180 220 240 340 1120 720 500 840 Destroy 0b10 Robot/NC 760 | . 20 . 80 15 30 . 5 25 45 25 5 . 5 25 5 10 70 . 25 . 65 10 . 10 20 . 30 15 15 20 30 40 . 85 30 Destroy Leader 1954 | . 88 . 178 30 158 20 10 . 66 40 70 20 32 20 22 50 58 30 52 30 96 10 . . 20 20 122 4 30 52 52 244 50 160 120 Allied During Kill 5595 | . . . . 41 15 17 . 8 37 5 13 9 38 258 86 684 316 234 152 130 345 103 20 62 160 480 972 170 265 244 39 51 10 65 566 Successful Hack 362 | . 42 . 11 21 10 . . . 6 . 14 14 2 . . . 16 . 12 16 . 14 . . . 14 32 68 . 24 34 5 . 7 . Select Force Hacks 150 | . 60 . . . . . . . . . . . . . . . . . . . 30 . 30 . 30 . . . . . . . . . . Disable Machine 1770 | . 15 . 45 . . . . . 180 . 15 . . . 45 30 75 . 30 30 285 . . 30 240 . 90 90 . 15 195 240 . 60 60 Anti-Garrison Action 3900 | . . . . 500 . 300 . 250 . 200 . 100 . 200 . 200 150 . . 250 150 100 . 450 . 300 . . 350 . . . 400 . . Destroy Structure 3785 | . 12 . 25 105 3 20 3 . 53 . 1 1 7 28 1 46 128 41 10 31 380 . 2 12 52 100 170 86 15 27 312 581 225 336 972 Partial Spotted 75 | . . . . . 15 . 15 . . 15 . . . . . . 15 . . . . . . 15 . . . . . . . . . . . Lose Combat Pursuer 690 | . 15 . 30 . . 60 . . . 15 15 . . . . . 15 . . 15 15 15 . 45 15 . 60 30 . . 120 120 75 15 15 Influence Decreases 29502 | . 375 277 959 120 1907 144 1047 14 760 81 1077 175 755 221 1002 135 1625 516 1240 329 2423 137 628 194 1155 255 2426 1359 179 1744 652 1638 506 1917 1530 Entered New Map 9740 | . . 124 . 60 760 94 494 14 178 61 475 95 250 11 401 25 792 356 606 149 431 117 288 15 276 25 525 504 109 504 13 219 316 895 558 Time Decay 8976 | . 365 153 527 . 612 . 278 . 562 . 502 . 200 . 206 . 368 . 374 . 612 . 20 . 315 . 701 380 . 469 529 719 . 542 542 Lost Part 900 | . 10 . 10 30 10 10 . . . . 20 20 . 10 . 10 10 . 10 . . . . 50 . 10 10 . 10 30 20 150 110 210 150 Lost Ally 4784 | . . . . 30 100 40 . . 20 20 80 60 100 200 20 100 180 160 100 180 580 20 20 129 114 220 740 100 60 291 90 400 80 270 280 Purge Threat 5102 | . . . 422 . 425 . 275 . . . . . 205 . 375 . 275 . 150 . 800 . 300 . 450 . 450 375 . 450 . 150 . . . Squads Dispatched 176 | . 4 . 4 . 7 . 1 . 4 . 4 . 6 . 4 . 9 . 5 . 14 . 1 . 5 . 26 5 . 6 5 29 . 20 17 Investigation 15 | . 3 . 3 . 1 . . . . . . . 1 . . . . . . . 1 . 1 . 2 . . 1 . . . . . 2 . Extermination 42 | . . . . . . . . . 3 . 3 . 2 . 1 . 1 . 2 . 3 . . . 1 . 5 2 . 2 5 7 . 3 2 Reinforcement 55 | . 1 . 1 . 2 . 1 . 1 . 1 . 1 . 2 . 4 . 1 . 7 . . . 2 . 9 1 . 4 . 11 . 5 1 Assault 39 | . . . . . . . . . . . . . . . . . 3 . . . 3 . . . . . 11 . . . . 5 . 3 14 Garrison 22 | . . . . . 4 . . . . . . . 2 . 1 . 1 . 2 . . . . . . . 1 1 . . . 4 . 6 . Intercept 3 | . . . . . . . . . . . . . . . . . . . . . . . . . . . . . . . . 2 . 1 . Searches Triggered . | . . . . . . . . . . . . . . . . . . . . . . . . . . . . . . . . . . . . Unchained Authorized 6 | . . . . . . . . . . . . . . . . . 1 . 1 . 1 . . . . . . . . 1 1 . . 1 . Construction Impeded 8 | . . . . . . . . . . . . . . . . . 1 . 1 . . . . . 1 . 2 . . 1 . 1 . 1 . Haulers Reinforced 9 | . . . . . . . . . 1 . . . . . 1 . . . . . 1 . . . . . 2 . . 1 . . . 3 . Active Scanning Responses . | . . . . . . . . . . . . . . . . . . . . . . . . . . . . . . . . . . . . Cargo Convoy Interrupts 3 | . . . . . . . . . . . . . 1 . . . . . 1 . . . . . . . . . . 1 . . . . . Alert ID Control Effect 339 | . . . . . . . . . . . . . . . . . 22 17 6 21 34 8 2 15 16 17 52 9 12 33 3 12 . 12 48 Stealth | -11 -10 -10 -8 -8 -8 -8 -7 -7 -7 -7 -7 -7 -6 -6 -6 -6 -5 -5 -5 -5 -4 -4 -4 -4 -4 -4 -3 -3 -3 -2 -2 -2 -2 -1 -1 --------- Run | Yrd Mat Sub Mat Gar Mat Gar Fac Gar Fac Gar Fac Gar Fac Gar Fac Gar Fac Gar Fac Gar Fac Gar Fac Gar Fac Gar Res Qua Gar Res Tes Sec Gar Acc Com Distress Signals 35 | . 1 . 3 . 2 . . . . . 1 . 2 . . . 1 . . . 3 . . . 1 . 3 . . 4 2 3 . 5 4 Communications Jammed 512 | . . . . . . . . . . . . . . . . . . . . . 172 . 1 . . . 53 . . 286 . . . . . Distress Signals 499 | . . . . . . . . . . . . . . . . . . . . . 162 . 1 . . . 52 . . 284 . . . . . Times Spotted 1295 | . 27 13 57 34 24 24 1 3 14 30 18 20 26 34 1 32 27 19 27 47 81 19 4 42 19 40 109 26 32 43 37 132 38 71 124 Peak Tracking Total 12 | . 3 2 5 5 6 8 1 2 3 5 3 3 12 6 1 4 4 5 11 11 6 5 4 9 4 10 10 5 5 6 5 9 6 8 12 Tactical Retreats 40 | . 1 1 2 . . 2 . . . 1 1 . . . . . 1 . . 1 3 1 . 2 1 . 2 2 . . 7 8 2 1 1 Traps | -11 -10 -10 -8 -8 -8 -8 -7 -7 -7 -7 -7 -7 -6 -6 -6 -6 -5 -5 -5 -5 -4 -4 -4 -4 -4 -4 -3 -3 -3 -2 -2 -2 -2 -1 -1 ------- Run | Yrd Mat Sub Mat Gar Mat Gar Fac Gar Fac Gar Fac Gar Fac Gar Fac Gar Fac Gar Fac Gar Fac Gar Fac Gar Fac Gar Res Qua Gar Res Tes Sec Gar Acc Com Traps Triggered 87 | . 2 1 1 6 1 8 . 3 . 10 5 2 . 6 . 4 . 2 . 2 2 . . 1 1 1 . . 7 2 2 . 6 1 11 Indirectly . | . . . . . . . . . . . . . . . . . . . . . . . . . . . . . . . . . . . . Trap Hack Attempts . | . . . . . . . . . . . . . . . . . . . . . . . . . . . . . . . . . . . . Triggered . | . . . . . . . . . . . . . . . . . . . . . . . . . . . . . . . . . . . . Disarmed 6 | . . . 6 . . . . . . . . . . . . . . . . . . . . . . . . . . . . . . . . Reprogrammed . | . . . . . . . . . . . . . . . . . . . . . . . . . . . . . . . . . . . . Reused 1 | . . 1 . . . . . . . . . . . . . . . . . . . . . . . . . . . . . . . . . Traps Extracted . | . . . . . . . . . . . . . . . . . . . . . . . . . . . . . . . . . . . . Installed 3 | . . 3 . . . . . . . . . . . . . . . . . . . . . . . . . . . . . . . . . Triggered . | . . . . . . . . . . . . . . . . . . . . . . . . . . . . . . . . . . . . Most Traps Carried 1 | . . 1 . . . . . . . . . . . . . . . . . . . . . . . . . . . . . . . . . Machines | -11 -10 -10 -8 -8 -8 -8 -7 -7 -7 -7 -7 -7 -6 -6 -6 -6 -5 -5 -5 -5 -4 -4 -4 -4 -4 -4 -3 -3 -3 -2 -2 -2 -2 -1 -1 ---------- Run | Yrd Mat Sub Mat Gar Mat Gar Fac Gar Fac Gar Fac Gar Fac Gar Fac Gar Fac Gar Fac Gar Fac Gar Fac Gar Fac Gar Res Qua Gar Res Tes Sec Gar Acc Com Machines Disabled 162 | . 1 1 3 5 . 2 . 1 12 . 1 3 . 1 3 4 6 . 2 4 20 2 . 8 16 4 6 6 5 1 13 18 6 4 4 Max in Single Turn 2 | . 1 1 1 2 . 1 . 1 1 . 1 1 . 1 . 1 . . . 1 . 1 . 1 . 1 1 1 1 1 1 2 1 1 1 Garrison Access 8 | . . . . . . . . . . . . . . . . . 1 . . . 1 . . . . . 3 . . 1 . . . 2 . Garrison Relay 33 | . . . . 2 . 2 . 1 . . . 2 . 1 . 1 . . . 2 . 3 . 5 . 4 . . 5 . . . 5 . . Phase Generator 1 | . . . . 1 . . . . . . . . . . . . . . . . . . . . . . . . . . . . . . . Machines Repaired . | . . . . . . . . . . . . . . . . . . . . . . . . . . . . . . . . . . . . Machines Dismantled . | . . . . . . . . . . . . . . . . . . . . . . . . . . . . . . . . . . . . Machines Sabotaged . | . . . . . . . . . . . . . . . . . . . . . . . . . . . . . . . . . . . . Overloaded Fab Kills . | . . . . . . . . . . . . . . . . . . . . . . . . . . . . . . . . . . . . Hacking | -11 -10 -10 -8 -8 -8 -8 -7 -7 -7 -7 -7 -7 -6 -6 -6 -6 -5 -5 -5 -5 -4 -4 -4 -4 -4 -4 -3 -3 -3 -2 -2 -2 -2 -1 -1 --------- Run | Yrd Mat Sub Mat Gar Mat Gar Fac Gar Fac Gar Fac Gar Fac Gar Fac Gar Fac Gar Fac Gar Fac Gar Fac Gar Fac Gar Res Qua Gar Res Tes Sec Gar Acc Com Machines Accessed 128 | . 10 2 12 3 4 2 2 2 8 3 4 1 3 2 1 1 6 . 3 4 3 1 2 3 1 1 13 10 1 4 3 6 1 5 1 Terminals 89 | . 7 . 10 3 1 2 1 2 4 3 . 1 1 2 . 1 5 . 1 4 2 1 1 3 . 1 10 7 1 3 2 5 1 3 1 Fabricators 2 | . . . . . . . . . 1 . 1 . . . . . . . . . . . . . . . . . . . . . . . . Repair Stations 5 | . 1 . . . 1 . . . 2 . 1 . . . . . . . . . . . . . . . . . . . . . . . . Recycling Units 2 | . 2 . . . . . . . . . . . . . . . . . . . . . . . . . . . . . . . . . . Scanalyzers 8 | . . . 1 . 1 . . . . . 1 . 1 . . . . . 1 . . . . . . . . 2 . . 1 . . . . Garrison Access 20 | . . . 1 . 1 . 1 . 1 . 1 . 1 . 1 . 1 . 1 . 1 . 1 . 1 . 3 1 . 1 . 1 . 2 . Total Hacks 280 | . 25 5 32 6 12 5 4 2 23 4 8 1 6 3 1 2 8 . 8 7 9 1 7 5 3 2 28 21 2 6 8 12 2 11 1 Successful 135 | . 11 5 16 2 10 . 2 1 10 1 5 1 4 1 1 . 3 . 4 1 6 1 5 1 3 1 9 11 . 3 6 5 . 6 . Failed 142 | . 13 . 15 4 1 5 2 1 13 3 3 . 2 2 . 2 5 . 4 6 3 . 2 4 . 1 19 10 2 3 2 7 2 5 1 Catastrophic 41 | . . . 2 . . 2 . . 5 2 . . 1 1 . 1 3 . . 1 1 . 1 . . . 7 4 1 2 1 2 2 1 1 Database Lockouts 3 | . 1 . 1 . 1 . . . . . . . . . . . . . . . . . . . . . . . . . . . . . . Manual 99 | . 19 . 22 . 2 2 . 2 7 1 2 . . 1 . . 6 . 1 . 4 . 5 . 1 . 14 2 . 1 . 7 . . . Terminals 171 | . 12 . 26 6 2 5 2 2 7 4 . 1 1 3 . 2 6 . 1 7 6 1 4 5 . 2 22 12 2 4 4 11 2 8 1 Fabricators 4 | . . . . . . . . . 1 . 3 . . . . . . . . . . . . . . . . . . . . . . . . Repair Stations 28 | . 6 . . . 6 . . . 14 . 2 . . . . . . . . . . . . . . . . . . . . . . . . Recycling Units 7 | . 7 . . . . . . . . . . . . . . . . . . . . . . . . . . . . . . . . . . Scanalyzers 27 | . . . 4 . 2 . . . . . 2 . 3 . . . . . 5 . . . . . . . . 7 . . 4 . . . . Garrison Access 38 | . . . 2 . 2 . 2 . 1 . 1 . 2 . 1 . 2 . 2 . 3 . 3 . 3 . 6 2 . 2 . 1 . 3 . Terminal Hacks 44 | . 2 5 8 2 1 . . 1 . 1 . 1 . 1 . . . . . 1 2 1 2 1 . 1 1 4 . 1 2 3 . 3 . Record 4 | . . 4 . . . . . . . . . . . . . . . . . . . . . . . . . . . . . . . . . Robot Schematic 1 | . 1 . . . . . . . . . . . . . . . . . . . . . . . . . . . . . . . . . . Open Door 8 | . . . . 1 . . . . . 1 . . . 1 . . . . . . . . . . . . . 1 . . . 1 . 3 . Level Access Points 1 | . 1 . . . . . . . . . . . . . . . . . . . . . . . . . . . . . . . . . . Branch Access Points 1 | . . . 1 . . . . . . . . . . . . . . . . . . . . . . . . . . . . . . . . Emergency Access Points 3 | . . . . 1 . . . . . . . . . . . . . . . . . . . 1 . 1 . . . . . . . . . Terminal Index 2 | . . . 1 . . . . . . . . . . . . . . . . . . . . . . . . 1 . . . . . . . Garrison Index 1 | . . . 1 . . . . . . . . . . . . . . . . . . . . . . . . . . . . . . . . Unreport Threat 9 | . . . 3 . 1 . . . . . . . . . . . . . . . 2 . 2 . . . . . . . . 1 . . . Locate Traps 4 | . . . . . . . . . . . . . . . . . . . . . . . . . . . 1 1 . 1 . 1 . . . Disarm Traps 2 | . . . 2 . . . . . . . . . . . . . . . . . . . . . . . . . . . . . . . . Registered Components 1 | . . . . . . . . . . . . . . . . . . . . . . . . . . . . . . . 1 . . . . Registered Prototypes 1 | . . . . . . . . . . . . . . . . . . . . . . . . . . . . 1 . . . . . . . Zone Layout 1 | . . . . . . . . . . . . . . . . . . . . . . . . . . . . . . . 1 . . . . Garrison Registry 3 | . . . . . . . . 1 . . . 1 . . . . . . . . . 1 . . . . . . . . . . . . . Security Stations 1 | . . . . . . . . . . . . . . . . . . . . 1 . . . . . . . . . . . . . . . Proto ID Catalog 1 | . . 1 . . . . . . . . . . . . . . . . . . . . . . . . . . . . . . . . . Fabricator Hacks 1 | . . . . . . . . . . . 1 . . . . . . . . . . . . . . . . . . . . . . . . Network Status 1 | . . . . . . . . . . . 1 . . . . . . . . . . . . . . . . . . . . . . . . Repair Station Hacks 21 | . 4 . . . 6 . . . 9 . 2 . . . . . . . . . . . . . . . . . . . . . . . . Scan Component 11 | . 2 . . . 3 . . . 5 . 1 . . . . . . . . . . . . . . . . . . . . . . . . Repair 10 | . 2 . . . 3 . . . 4 . 1 . . . . . . . . . . . . . . . . . . . . . . . . Recycling Unit Hacks . | . . . . . . . . . . . . . . . . . . . . . . . . . . . . . . . . . . . . Scanalyzer 18 | . . . 3 . 1 . . . . . 1 . 2 . . . . . 2 . . . . . . . . 5 . . 4 . . . . Insert Component 1 | . . . . . . . . . . . . . . . . . . . . . . . . . . . . 1 . . . . . . . Retrieve Study 17 | . . . 3 . 1 . . . . . 1 . 2 . . . . . 2 . . . . . . . . 4 . . 4 . . . . Garrison Access Hacks 34 | . . . 1 . 2 . 2 . 1 . 1 . 2 . 1 . 2 . 2 . 2 . 2 . 2 . 6 2 . 2 . 1 . 3 . Unlock Access 14 | . . . 1 . 1 . 1 . 1 . 1 . 1 . 1 . 1 . 1 . 1 . 1 . 1 . . 1 . . . 1 . . . Seal Access 6 | . . . . . . . . . . . . . . . . . . . . . . . . . . . 3 . . 1 . . . 2 . Coupler Status 14 | . . . . . 1 . 1 . . . . . 1 . . . 1 . 1 . 1 . 1 . 1 . 3 1 . 1 . . . 1 . Unauthorized Hacks 17 | . 5 . 4 . . . . . . . . . . . . . 1 . . . 2 . 1 . 1 . 2 . . . . 1 . . . Terminals 12 | . 3 . 4 . . . . . . . . . . . . . 1 . . . 1 . . . . . 2 . . . . 1 . . . Assimilate 1 | . . . 1 . . . . . . . . . . . . . . . . . . . . . . . . . . . . . . . . Botnet 2 | . . . . . . . . . . . . . . . . . . . . . . . . . . . 1 . . . . 1 . . . Operators 4 | . . . 1 . . . . . . . . . . . . . 1 . . . 1 . . . . . 1 . . . . . . . . Skim 5 | . 3 . 2 . . . . . . . . . . . . . . . . . . . . . . . . . . . . . . . . Fabricators . | . . . . . . . . . . . . . . . . . . . . . . . . . . . . . . . . . . . . Repair Stations . | . . . . . . . . . . . . . . . . . . . . . . . . . . . . . . . . . . . . Recycling Units 2 | . 2 . . . . . . . . . . . . . . . . . . . . . . . . . . . . . . . . . . Tunnel 2 | . 2 . . . . . . . . . . . . . . . . . . . . . . . . . . . . . . . . . . Scanalyzers . | . . . . . . . . . . . . . . . . . . . . . . . . . . . . . . . . . . . . Garrison Access 3 | . . . . . . . . . . . . . . . . . . . . . 1 . 1 . 1 . . . . . . . . . . Eject 3 | . . . . . . . . . . . . . . . . . . . . . 1 . 1 . 1 . . . . . . . . . . Data Cores Recovered 6 | . . . . . . . . . 2 . . . . . . . . . 1 . . . . . . . 1 1 . . . . . . 1 Used 2 | . . . . . . . . . 1 . . . . . . . . . 1 . . . . . . . . . . . . . . . . Hacking Detections 101 | . 9 . 12 1 3 1 1 . 6 1 3 1 3 1 1 1 5 . 3 3 3 . 1 3 1 1 12 8 1 4 3 5 1 2 1 Full Trace Events 9 | . . . 2 1 . 2 . . . . . . . 1 . 1 . . . 1 . . . . . . . . . . . . 1 . . Feedback Events 3 | . . . . . . 1 . . . . . . . . . . . . . 1 . . . . . . . . . . . . 1 . . Corruption 3 | . . . . . . 1 . . . . . . . . . . . . . 1 . . . . . . . . . . . . 1 . . Feedback Blocked . | . . . . . . . . . . . . . . . . . . . . . . . . . . . . . . . . . . . . Robot Schematics Acquired 5 | . 1 . . . . . . . . . . . . . . . . . . . . . . . . . . . . . 4 . . . . Robots Built . | . . . . . . . . . . . . . . . . . . . . . . . . . . . . . . . . . . . . Authchips . | . . . . . . . . . . . . . . . . . . . . . . . . . . . . . . . . . . . . Time . | . . . . . . . . . . . . . . . . . . . . . . . . . . . . . . . . . . . . Total Robot Build Rating . | . . . . . . . . . . . . . . . . . . . . . . . . . . . . . . . . . . . . Part Schematics Acquired 3 | . . . . . . . . . . . . . . . . . . . . . . . . . . . . . . . 2 1 . . . Parts Built . | . . . . . . . . . . . . . . . . . . . . . . . . . . . . . . . . . . . . Authchips . | . . . . . . . . . . . . . . . . . . . . . . . . . . . . . . . . . . . . Time . | . . . . . . . . . . . . . . . . . . . . . . . . . . . . . . . . . . . . Total Part Build Rating . | . . . . . . . . . . . . . . . . . . . . . . . . . . . . . . . . . . . . Part Studies Acquired 17 | . . . 3 . 1 . . . . . 1 . 2 . . . . . 2 . . . . . . . . 4 . . 4 . . . . Parts Repaired 10 | . 2 . . . 3 . . . 4 . 1 . . . . . . . . . . . . . . . . . . . . . . . . Time 506 | . 58 . . . 164 . . . 224 . 60 . . . . . . . . . . . . . . . . . . . . . . . . Parts Recycled . | . . . . . . . . . . . . . . . . . . . . . . . . . . . . . . . . . . . . Recycled Matter . | . . . . . . . . . . . . . . . . . . . . . . . . . . . . . . . . . . . . Retrieved Matter . | . . . . . . . . . . . . . . . . . . . . . . . . . . . . . . . . . . . . Retrieved Components . | . . . . . . . . . . . . . . . . . . . . . . . . . . . . . . . . . . . . Parts Scanalyzed . | . . . . . . . . . . . . . . . . . . . . . . . . . . . . . . . . . . . . Part Schematics Acquired . | . . . . . . . . . . . . . . . . . . . . . . . . . . . . . . . . . . . . Parts Damaged . | . . . . . . . . . . . . . . . . . . . . . . . . . . . . . . . . . . . . Bothacking | -11 -10 -10 -8 -8 -8 -8 -7 -7 -7 -7 -7 -7 -6 -6 -6 -6 -5 -5 -5 -5 -4 -4 -4 -4 -4 -4 -3 -3 -3 -2 -2 -2 -2 -1 -1 ------------ Run | Yrd Mat Sub Mat Gar Mat Gar Fac Gar Fac Gar Fac Gar Fac Gar Fac Gar Fac Gar Fac Gar Fac Gar Fac Gar Fac Gar Res Qua Gar Res Tes Sec Gar Acc Com Used RIF Installer 17 | . . . . 1 . 1 . 1 . 1 . 1 . 1 . 1 . 2 . 1 . 1 . 2 . 1 . . 2 . . . 1 . . Coupler Efficiency 1 | . . . . . . . . . . . . . . . . . . 1 . . . . . . . . . . . . . . . . . Hotswap 1 | . . . . . . . . 1 . . . . . . . . . . . . . . . . . . . . . . . . . . . Code Merge 2 | . . . . . . . . . . . . . . . . . . . . . . 1 . . . 1 . . . . . . . . . Command Fork 1 | . . . . . . . . . . . . . . . . . . . . . . . . 1 . . . . . . . . . . . Zone Cloak 2 | . . . . . . . . . . . . . . . . . . . . 1 . . . . . . . . 1 . . . . . . Watcher Feeds 1 | . . . . . . . . . . . . . . . . . . . . . . . . . . . . . 1 . . . . . . Patrol Navigation 1 | . . . . . . . . . . . . . . . . . . 1 . . . . . . . . . . . . . . . . . Alert ID Control 1 | . . . . . . . . . . . . . . . . 1 . . . . . . . . . . . . . . . . . . . Structural Interface 1 | . . . . . . 1 . . . . . . . . . . . . . . . . . . . . . . . . . . . . . Program Shield 1 | . . . . . . . . . . . . . . 1 . . . . . . . . . . . . . . . . . . . . . Autooverride 3 | . . . . . . . . . . . . 1 . . . . . . . . . . . 1 . . . . . . . . 1 . . Autoassimilate 1 | . . . . . . . . . . 1 . . . . . . . . . . . . . . . . . . . . . . . . . Robots Hacked 284 | . . . . . 1 . 1 . . . . 7 2 7 2 8 11 . 5 13 17 5 . 12 7 7 43 10 15 12 11 35 6 25 22 Non-combat 40 | . . . . . 1 . 1 . . . . . 1 . 1 . 5 . 3 . 3 . . . 1 . 5 2 . 5 . . . 8 4 Combat 244 | . . . . . . . . . . . . 7 1 7 1 8 6 . 2 13 14 5 . 12 6 7 38 8 15 7 11 35 6 17 18 Autooverrided 68 | . . . . . . . . . . . . . . . . . 1 . 1 3 3 1 . 3 3 3 15 2 5 1 1 9 2 5 10 Autoassimilated 55 | . . . . . . . . . . . . 4 1 3 1 3 1 . . 3 2 3 . 1 1 1 4 2 2 4 . 7 4 4 4 Robot Hacks Applied 197 | . . . . . 3 . 2 . . . . 4 4 4 3 6 10 . 4 7 16 1 . 8 6 3 28 7 8 11 12 21 . 19 10 parse_system 17 | . . . . . . . . . . . . . . . . 3 . . . 1 . . . 1 . . 2 1 . . 2 2 . 4 1 find_chute 1 | . . . . . . . . . . . . . . . . . 1 . . . . . . . . . . . . . . . . . . drop_inventory 11 | . . . . . . . . . . . . . . . . . 2 . . . 2 . . . . . 2 . . 3 . . . 2 . purge_threat 32 | . . . . . 2 . 2 . . . . . 2 . 3 . 2 . 1 . 5 . . . 4 . 4 3 . 4 . . . . . block_reporting 1 | . . . . . . . . . . . . . . . . . . . . . . . . . . . . . . 1 . . . . . map_route 7 | . . . . . . . . . . . . . . . . . . . . . . . . . . . . . . . . . . 4 3 redirect_shields 1 | . . . . . . . . . . . . . . . . . . . 1 . . . . . . . . . . . . . . . . disable_scanner 7 | . . . . . . . . . . . . . . . . . . . . . . . . . . . . . . . 6 1 . . . find_garrison 3 | . . . . . . . . . . . . . . . . . 1 . . . 1 . . . 1 . . . . . . . . . . overload_power 1 | . . . . . . . . . . . . . . . . . . . . . . . . . . . . . . . . 1 . . . amplify_resonance 26 | . . . . . . . . . . . . 2 . 1 . 1 1 . . 2 2 1 . 3 . . 3 1 4 . 1 3 . 1 . overwrite_iff 37 | . . . . . . . . . . . . 1 . 1 . 1 1 . . 3 5 . . 1 1 1 8 . 1 . 1 10 . 2 . streamctrl_low 1 | . . . . . 1 . . . . . . . . . . . . . . . . . . . . . . . . . . . . . . formatsys_low 5 | . . . . . . . . . . . . . 1 . . . . . . . . . . . . . . . . . 1 1 . 1 1 formatsys_high 46 | . . . . . . . . . . . . 1 1 2 . 1 2 . 2 1 1 . . 3 . 2 8 2 3 3 1 3 . 5 5 formatsys_deep 1 | . . . . . . . . . . . . . . . . . . . . . . . . . . . 1 . . . . . . . . Relay Couplers Released 172 | . . . . 10 . 11 . 4 4 . . 7 4 3 . 5 1 . . 11 5 12 3 18 3 18 5 3 25 . . . 19 1 . Ejected 8 | . . . . . . . . . . . . . . . . . . . . . 2 . 3 . 3 . . . . . . . . . . Machine Destruction 140 | . . . . 10 . 8 . 4 . . . 7 . 3 . 5 1 . . 7 3 12 . 18 . 18 2 . 22 . . . 19 1 . Programmers 24 | . . . . . . 3 . . 4 . . . 4 . . . . . . 4 . . . . . . 3 3 3 . . . . . . Attached 46 | . . . . . 1 . 1 . . . . 2 2 2 1 2 1 . 1 2 3 2 . 2 . . 6 3 2 . 1 1 3 3 5 Merged Code Value 593 | . . . . . . . . . . . . . . . . . . . . . . 26 14 113 25 137 . . 221 . 15 . 42 . . Fabnet Peak Effective % . | . . . . . . . . . . . . . . . . . . . . . . . . . . . . . . . . . . . . Robots Rewired 36 | . . . . 6 . 2 . . . 3 . . . 4 . 5 . . . 6 . . . 3 . 5 . . . . 1 . . . 1 Allies Hacked 18 | . . . . . . . . . . . . . 1 . . 2 1 . 1 2 . . . . 2 3 4 1 . . 1 . . . . Hacks Repelled 1 | . . . . . . . . . . . . . . . . . . . . . . . . . . 1 . . . . . . . . . Allies | -11 -10 -10 -8 -8 -8 -8 -7 -7 -7 -7 -7 -7 -6 -6 -6 -6 -5 -5 -5 -5 -4 -4 -4 -4 -4 -4 -3 -3 -3 -2 -2 -2 -2 -1 -1 -------- Run | Yrd Mat Sub Mat Gar Mat Gar Fac Gar Fac Gar Fac Gar Fac Gar Fac Gar Fac Gar Fac Gar Fac Gar Fac Gar Fac Gar Res Qua Gar Res Tes Sec Gar Acc Com Total Allies 278 | . . . 1 6 1 2 . 2 . 5 . 6 2 12 1 14 5 2 3 16 11 6 . 15 5 14 39 6 12 10 5 33 6 18 20 Largest Group 15 | . . . 1 5 5 2 . 2 2 3 4 3 4 4 5 15 13 6 4 9 10 5 4 11 12 12 14 6 9 8 3 4 1 6 5 Highest-Rated Group 907 | . . . 10 102 102 70 . 142 142 57 73 80 90 351 380 872 711 420 237 445 492 283 203 460 509 570 708 510 648 601 344 590 69 380 907 Highest-Rated Ally 344 | . . . 10 39 34 39 . 80 80 31 25 32 32 148 148 148 148 141 80 80 116 80 62 62 62 99 116 152 152 152 344 326 69 69 219 Total Orders 65 | . . . . 2 . . . . . . . . . 2 . 5 1 . 2 8 10 . . 5 1 2 4 3 . . 5 . . 1 14 STAY 22 | . . . . 1 . . . . . . . . . 1 . 1 . . 1 1 5 . . 2 . 1 1 1 . . . . . . 7 ROAM 5 | . . . . . . . . . . . . . . . . 1 . . . 4 . . . . . . . . . . . . . . . FOLLOW 21 | . . . . 1 . . . . . . . . . 1 . 2 . . 1 3 3 . . 2 . 1 1 1 . . . . . . 5 AID 11 | . . . . . . . . . . . . . . . . 1 1 . . . 2 . . 1 1 . 2 1 . . . . . 1 1 EXPLORE 5 | . . . . . . . . . . . . . . . . . . . . . . . . . . . . . . . 4 . . . 1 RETURN 1 | . . . . . . . . . . . . . . . . . . . . . . . . . . . . . . . 1 . . . . Ally Attacks 3475 | . . . . 43 20 18 . 1 27 6 27 13 48 161 37 159 275 166 103 133 488 46 4 108 104 157 487 101 137 194 25 131 13 74 169 Total Damage 124839 | . . . . 549 400 113 . 30 935 98 368 238 1307 3863 877 4133 7217 3529 3612 4271 17213 1696 102 3277 3514 6483 18082 3599 5045 7856 1141 4615 408 2959 17309 Kills 717 | . . . . 8 4 2 . . 14 1 3 2 10 28 5 35 52 32 19 27 86 12 3 18 27 41 102 21 25 42 7 14 . 12 65 Allies Corrupted 34 | . . . . . . 1 . . . . . . . 3 . 2 1 . . 4 . . . 5 1 . 2 2 . 8 1 2 . . 2 Allies Melted 8 | . . . . . . . . . . . . 1 . 1 . . . 1 . 1 2 . . . . . 2 . . . . . . . . Borg Created 84 | . . . . . . . . . . . . . 4 11 . 2 2 6 5 5 13 3 . 12 . 5 7 2 1 6 . . . . . Largest Collective 6 | . . . . . . . . . . . . . 1 6 . 5 5 5 6 5 5 5 . 6 . 6 5 5 5 3 . . . . . Intel | -11 -10 -10 -8 -8 -8 -8 -7 -7 -7 -7 -7 -7 -6 -6 -6 -6 -5 -5 -5 -5 -4 -4 -4 -4 -4 -4 -3 -3 -3 -2 -2 -2 -2 -1 -1 ------- Run | Yrd Mat Sub Mat Gar Mat Gar Fac Gar Fac Gar Fac Gar Fac Gar Fac Gar Fac Gar Fac Gar Fac Gar Fac Gar Fac Gar Res Qua Gar Res Tes Sec Gar Acc Com Active Infowar (turns) 9199 | . . 731 . . . . . . . . . . 288 . . . . . . 1418 1546 619 56 52 . . 1362 439 1115 833 . . . . 740 Optics 1471 | . . 731 . . . . . . . . . . . . . . . . . . . . . . . . . . . . . . . . 740 Triangulation 288 | . . . . . . . . . . . . . 288 . . . . . . . . . . . . . . . . . . . . . . Jamming 7440 | . . . . . . . . . . . . . . . . . . . . 1418 1546 619 56 52 . . 1362 439 1115 833 . . . . . Robot Analysis Total . | . . . . . . . . . . . . . . . . . . . . . . . . . . . . . . . . . . . . Derelict Logs Recovered 1 | . . 1 . . . . . . . . . . . . . . . . . . . . . . . . . . . . . . . . . Drone Launches 6 | . . . . . . . . . . . . . . . . . . . . . . . . . . . . . . . 4 . . . 2 Drone Recoveries 3 | . . . . . . . . . . . . . . . . . . . . . . . . . . . . . . . 2 . . . 1 Exploration | -11 -10 -10 -8 -8 -8 -8 -7 -7 -7 -7 -7 -7 -6 -6 -6 -6 -5 -5 -5 -5 -4 -4 -4 -4 -4 -4 -3 -3 -3 -2 -2 -2 -2 -1 -1 ------------- Run | Yrd Mat Sub Mat Gar Mat Gar Fac Gar Fac Gar Fac Gar Fac Gar Fac Gar Fac Gar Fac Gar Fac Gar Fac Gar Fac Gar Res Qua Gar Res Tes Sec Gar Acc Com Turns Passed 52497 | 68 1516 3124 2702 2114 2015 1300 608 825 1663 1963 1340 702 1031 1615 424 1268 850 855 870 1555 2017 619 56 1833 711 1290 3013 897 1623 1260 2242 3370 1733 1557 1868 Spaces Moved 23453 | 41 780 1668 1086 862 625 527 250 323 576 716 400 268 612 903 130 731 488 569 415 790 1000 339 31 1003 373 713 1384 495 698 465 881 1144 626 607 934 Core 5 | 5 . . . . . . . . . . . . . . . . . . . . . . . . . . . . . . . . . . . Treads 17585 | 36 780 1668 1086 862 625 527 250 323 576 540 9 209 . . . . . . 46 790 1000 339 31 1003 373 713 1384 495 698 339 881 1144 626 232 . Legs 1130 | . . . . . . . . . . . . . . . . . . . . . . . . . . . . . . . . . . 196 934 Wheels 4733 | . . . . . . . . . . 176 391 59 612 903 130 731 488 569 369 . . . . . . . . . . 126 . . . 179 . Hover . | . . . . . . . . . . . . . . . . . . . . . . . . . . . . . . . . . . . . Flight . | . . . . . . . . . . . . . . . . . . . . . . . . . . . . . . . . . . . . Fastest Speed 50 | 50 160 160 200 163 216 216 216 220 220 230 215 130 130 130 145 145 120 135 135 160 155 155 155 155 160 160 160 160 160 160 160 160 160 118 116 Average Speed 183 | 146 160 173 211 209 216 216 221 238 234 237 219 220 137 143 145 145 134 135 139 165 168 155 155 156 182 160 182 161 204 229 222 220 215 176 137 Slowest Speed 320 | 160 160 240 240 216 216 216 269 269 240 240 240 320 145 145 145 145 135 135 240 240 240 155 155 160 240 240 240 240 245 245 245 222 284 295 190 Overloaded Moves . | . . . . . . . . . . . . . . . . . . . . . . . . . . . . . . . . . . . . Propulsion Burnouts . | . . . . . . . . . . . . . . . . . . . . . . . . . . . . . . . . . . . . Robots Hopped 2 | . . . . . . . . . . . . . . . . . . . . 1 . . . . . . . . . . 1 . . . . Potential Cave-ins 1 | . . . . . . . . . . . . . . . . . . . . . . . . . . . . . . . . . 1 . . Cave-ins Triggered . | . . . . . . . . . . . . . . . . . . . . . . . . . . . . . . . . . . . . Teleports 1 | . . . . . . . . . . . . . . . . . . . . . . . . . . . . . . . . 1 . . . Exploration Rate (%) 53 | 3 99 58 86 84 44 70 6 59 18 97 14 42 19 95 5 98 18 86 6 96 25 65 2 96 13 84 45 69 94 21 96 64 92 34 35 Regions Visited 35 Branch Regions 5 Pre-discovered Areas 3 | . 2 1 . . . . . . . . . . . . . . . . . . . . . . . . . . . . . . . . . Known Exits Taken 15 | . . . 1 . 1 . 1 . 1 . 1 . 1 . 1 . 1 . 1 . 1 . 1 . 1 . . 1 . 1 . 1 . . . Unknown Exits Taken 6 | 1 1 1 . . . . . . . . . . . . . . . . . . . . . . . . 1 . . . 1 . . 1 . Scrap Searched 8 | . . 8 . . . . . . . . . . . . . . . . . . . . . . . . . . . . . . . . . Spaces Dug 44 | . . . . . . . 3 . . . . 1 2 . . . 2 . . . 5 . . 1 . 1 2 1 . 2 1 17 . 3 3 Terrain Destroyed 830 | . 10 7 19 82 . . 3 . . . . 1 6 15 . . 3 . 4 14 16 . . 1 . 35 3 3 . 7 120 162 109 110 100 Melee 22 | . . . . . . . . . . . . . . . . . . . . . 4 . . 1 . 1 2 1 . 2 . 11 . . . Projectile 165 | . . 6 4 . . . 3 . . . . . 6 1 . . 3 . 4 . 2 . . . . . 1 2 . 5 11 22 33 29 33 AOE 638 | . 10 1 15 82 . . . . . . . 1 . 14 . . . . . 14 10 . . . . 34 . . . . 109 126 76 81 65 Terrain Rammed . | . . . . . . . . . . . . . . . . . . . . . . . . . . . . . . . . . . . . Walls Destroyed . | . . . . . . . . . . . . . . . . . . . . . . . . . . . . . . . . . . . . Machines Disabled . | . . . . . . . . . . . . . . . . . . . . . . . . . . . . . . . . . . . . Actions | -11 -10 -10 -8 -8 -8 -8 -7 -7 -7 -7 -7 -7 -6 -6 -6 -6 -5 -5 -5 -5 -4 -4 -4 -4 -4 -4 -3 -3 -3 -2 -2 -2 -2 -1 -1 --------- Run | Yrd Mat Sub Mat Gar Mat Gar Fac Gar Fac Gar Fac Gar Fac Gar Fac Gar Fac Gar Fac Gar Fac Gar Fac Gar Fac Gar Res Qua Gar Res Tes Sec Gar Acc Com Total 30925 | 46 950 1796 1325 1100 1245 630 291 367 874 910 834 351 771 1149 353 916 650 644 673 1012 1245 402 40 1206 400 834 1838 579 867 598 1082 1707 829 968 1443 Wait 3873 | . 85 23 51 29 545 8 11 1 261 26 392 33 111 78 208 122 102 46 180 89 130 24 8 109 12 63 325 38 84 27 39 210 34 193 176 Move 23422 | 40 779 1667 1086 861 625 526 250 322 575 715 400 267 612 902 130 730 488 568 414 787 999 338 30 1002 372 712 1383 495 697 464 878 1144 625 606 933 Hop 2 | . . . . . . . . . . . . . . . . . . . . 1 . . . . . . . . . . 1 . . . . Pick Up 298 | . 14 19 19 7 4 6 4 5 2 8 1 7 4 14 . 5 3 4 6 14 8 8 1 8 2 7 12 5 9 9 17 14 22 14 16 Fast Attach 138 | 6 5 4 4 2 2 . . 1 7 3 2 1 1 1 . . . . 6 . 2 1 . 4 . . 3 . 3 6 17 11 16 18 12 Attach 155 | . . 7 8 2 3 1 2 1 . 1 1 4 3 3 . 2 3 . 2 2 8 1 . 8 . 2 7 2 3 8 7 17 14 20 13 Detach 67 | . 1 1 1 1 1 . . . . . 1 . 2 2 . 1 . . 5 . 4 1 . 1 . 1 3 1 3 2 4 8 9 7 7 Swap 327 | . 3 4 24 14 8 8 7 1 7 3 1 4 9 21 2 9 13 1 15 15 15 1 . 4 3 13 19 10 12 15 11 12 11 13 19 Drop 261 | . . 11 31 10 5 2 3 8 7 11 2 4 1 16 . 3 3 2 10 14 4 5 1 8 2 5 10 4 11 7 26 9 11 9 6 Fire 1665 | . 47 57 92 82 49 59 12 21 12 76 29 27 20 62 13 31 33 . 25 27 24 1 . 23 9 17 58 19 8 43 71 252 76 88 202 Melee 137 | . . . 1 . 3 . . . . . . . . . . . . . . 1 31 19 . 18 . 5 4 2 20 8 6 18 . . 1 Ram 2 | . . . . . . . . . . . 1 . . . . . . . . . . . . . . . . . . . . 1 . . . Kick 2 | . . . . . . . . . . . . . . . . . . . . . . . . . . . . . . . . . . . 2 Crush 53 | . 7 . 6 . . . 2 . 1 13 1 . . . . . . . . . . . . 3 . . 4 . . . 3 10 3 . . Escape Stasis 188 | . . . . 10 . 15 . 6 . 17 3 4 . 30 . 8 . 16 . 4 . . . 2 . . . . 8 . 2 . 8 . 55 Rewire 222 | . 9 . . 82 . 4 . . . 36 . . 3 8 . 3 1 1 4 51 5 . . 1 . 4 . . 7 1 . 1 . . 1 Trap 3 | . . 3 . . . . . . . . . . . . . . . . . . . . . . . . . . . . . . . . . Miscellaneous 110 | . . . 2 . . 1 . 1 2 1 . . 5 12 . 2 4 6 6 7 15 3 . 15 . 5 10 3 2 8 . . . . . Route ------- -11/Scrapyard -10/Materials (discovered 5 exits: *Mat x3 / [*Min] / *Sub) -10/Subcaves (discovered 2 exits: *Mat / Rec) -8/Materials (discovered 2 exits: *Fac / Gar) -8/Garrison (discovered 4 exits: *Mat x4) -8/Materials (discovered 2 exits: *Fac / Gar) -8/Garrison (discovered 3 exits: *Fac x3) -7/Factory (discovered 3 exits: *Fac x2 / Gar) -7/Garrison (discovered 3 exits: *Fac x3) -7/Factory -7/Garrison (discovered 4 exits: *Fac x3 / *Fac) -7/Factory (discovered 2 exits: *Fac / Gar) -7/Garrison (discovered 3 exits: *Fac x3) -6/Factory -6/Garrison (discovered 3 exits: *Fac x3) -6/Factory -6/Garrison (discovered 3 exits: *Fac x3) -5/Factory -5/Garrison (discovered 3 exits: *Fac x3) -5/Factory (discovered 2 exits: [*Upp] / Gar) -5/Garrison (discovered 3 exits: *Fac x3) -4/Factory (discovered 3 exits: [*Upp x2] / Gar) -4/Garrison (discovered 3 exits: *Fac x3) -4/Factory -4/Garrison (discovered 4 exits: *Res x3 / *Fac) -4/Factory (discovered 3 exits: *Res / [*Upp] / Gar) -4/Garrison (discovered 3 exits: *Res x3) -3/Research (discovered 3 exits: *Res x2 / *Qua) -3/Quarantine (discovered 2 exits: *Res / Gar) -3/Garrison (discovered 3 exits: *Res x3) -2/Research -2/Testing (discovered 3 exits: *Acc / *Sec / [*Frg]) -2/Section 7 (discovered 2 exits: *Acc / Gar) -2/Garrison (discovered 3 exits: *Acc x3) -1/Access -1/Command To Epsilon Eridani History --------- Turn | Location | Event 9 | -11/Scrapyard | Discovered new exit (range 15) 69 | -11/Scrapyard | Entered Materials 303 | -10/Materials | Build established: Mutant 335 | -10/Materials | Discovered new exit (range 6) 410 | -10/Materials | Repaired Lgt. Treads 469 | -10/Materials | Identified exit to Materials 661 | -10/Materials | Discovered new exit (range 8) 929 | -10/Materials | Discovered new exit (range 15) 1041 | -10/Materials | Central database locked down 1404 | -10/Materials | Repaired EM Shotgun 1585 | -10/Materials | Entered Subcaves 1586 | -10/Subcaves | Approached by a straggling Scientist 1587 | -10/Subcaves | Identified exit to Recycling 1797 | -10/Subcaves | Discovered new exit (range 6) 1811 | -10/Subcaves | Visited Clippyterm 1816 | -10/Subcaves | Learned 40 Factory zone layouts 2082 | -10/Subcaves | Learned location of Zion (-7) 2082 | -10/Subcaves | Met a Zionite searching for "candidates" 2425 | -10/Subcaves | A swath of the cavern ceiling suddenly collapsed 2661 | -10/Subcaves | Shifting Twisted Machinery released Battle Rifle 2673 | -10/Subcaves | Shifting Twisted Machinery released Sub. Laser 3329 | -10/Subcaves | Core integrity fell below 50% 3875 | -10/Subcaves | Visited 4L-MR0's lab 3895 | -10/Subcaves | Found Meta Core 4230 | -10/Subcaves | Found Prototype Special Melee Weapon 4709 | -10/Subcaves | Entered Materials 4709 | -8/Materials | Evolved 4 slots: Propulsion x1, Utility x1, Weapon x2 5162 | -8/Materials | Build established: Tank 5597 | -8/Materials | Central database locked down 5883 | -8/Materials | Discovered new exit (range 16) 7411 | -8/Materials | Identified exit to Garrison 7411 | -8/Materials | Entered Garrison 7411 | -8/Garrison | Accompanied by 1 ally 7531 | -8/Garrison | Triggered checkpoint 7669 | -8/Garrison | Triggered checkpoint 8235 | -8/Garrison | Triggered checkpoint 8235 | -8/Garrison | Triggered checkpoint 8238 | -8/Garrison | Triggered checkpoint 8280 | -8/Garrison | Destroyed 7 combat bots 8329 | -8/Garrison | Triggered checkpoint 8431 | -8/Garrison | Discovered new exit (range 10) 8641 | -8/Garrison | Discovered new exit (range 8) 8773 | -8/Garrison | Triggered checkpoint 8810 | -8/Garrison | Garrison Relay disabled 9031 | -8/Garrison | Triggered checkpoint 9080 | -8/Garrison | Installed Relay Interface Framework 9135 | -8/Garrison | Triggered checkpoint 9189 | -8/Garrison | Triggered checkpoint 9197 | -8/Garrison | Discovered new exit (range 6) 9356 | -8/Garrison | Discovered new exit (range 15) 9395 | -8/Garrison | Phase Generator disabled 9480 | -8/Garrison | Garrison Relay disabled 9525 | -8/Garrison | Entered Materials 9525 | -8/Materials | Accompanied by 5 allies 9566 | -8/Materials | Garrison activated, responded to threat 9608 | -8/Materials | Lost 4 allies 9792 | -8/Materials | Central database locked down 10283 | -8/Materials | Garrison activated, responded to threat 10662 | -8/Materials | Discovered new exit (range 7) 10976 | -8/Materials | Repaired Enh. Autogun 11022 | -8/Materials | Repaired Imp. Cooling System 11083 | -8/Materials | Repaired Enh. Autogun 11540 | -8/Materials | Identified exit to Garrison 11540 | -8/Materials | Entered Garrison 11709 | -8/Garrison | Garrison Relay disabled 12008 | -8/Garrison | Triggered checkpoint 12036 | -8/Garrison | Garrison Relay disabled 12096 | -8/Garrison | Discovered new exit (range 15) 12254 | -8/Garrison | Triggered checkpoint 12335 | -8/Garrison | Build established: Bothacker-Tank 12376 | -8/Garrison | Triggered checkpoint 12421 | -8/Garrison | Discovered new exit (range 13) 12734 | -8/Garrison | Expanded RIF knowledge: Structural Interface 12756 | -8/Garrison | Discovered new exit (range 10) 12840 | -8/Garrison | Entered Factory 12840 | -7/Factory | Evolved 2 slots: Weapon x2 12841 | -7/Factory | Identified exit to Factory 13137 | -7/Factory | Build established: Bothacker-Executioner 13448 | -7/Factory | Identified exit to Garrison 13448 | -7/Factory | Entered Garrison 13448 | -7/Garrison | Warlord forces raided the area 13594 | -7/Garrison | Triggered checkpoint 13606 | -7/Garrison | Discovered new exit (range 62) 13606 | -7/Garrison | Discovered new exit (range 47) 13606 | -7/Garrison | Discovered new exit (range 83) 13618 | -7/Garrison | Triggered checkpoint 13634 | -7/Garrison | Triggered checkpoint 13680 | -7/Garrison | Triggered checkpoint 13760 | -7/Garrison | Triggered checkpoint 13833 | -7/Garrison | Warlord forces retreated 13963 | -7/Garrison | Expanded RIF knowledge: Hotswap 14182 | -7/Garrison | Found embedded Infiltrators 14192 | -7/Garrison | Triggered checkpoint 14219 | -7/Garrison | Garrison Relay disabled 14273 | -7/Garrison | Entered Factory 14273 | -7/Factory | Accompanied by 2 allies 14844 | -7/Factory | Repaired Enh. Autogun 14905 | -7/Factory | Repaired Enh. Autogun 14951 | -7/Factory | Repaired Arm. Huge Wheel 15650 | -7/Factory | Repaired Enh. Autogun? 15829 | -7/Factory | Identified exit to Garrison 15936 | -7/Factory | Entered Garrison 16168 | -7/Garrison | Triggered checkpoint 16454 | -7/Garrison | Triggered checkpoint 16517 | -7/Garrison | Discovered exit to Factory (range 11) 16890 | -7/Garrison | Triggered checkpoint 17148 | -7/Garrison | Discovered exit to Factory (range 12) 17220 | -7/Garrison | Triggered checkpoint 17248 | -7/Garrison | Discovered new exit (range 6) 17422 | -7/Garrison | Triggered checkpoint 17529 | -7/Garrison | Rescued a captive Derelict 17530 | -7/Garrison | Rescued a captive Derelict 17566 | -7/Garrison | Discovered exit to Factory (range 11) 17619 | -7/Garrison | Expanded RIF knowledge: Autoassimilate 17784 | -7/Garrison | Triggered checkpoint 17899 | -7/Garrison | Entered Factory 17899 | -7/Factory | Accompanied by 4 allies 18098 | -7/Factory | Lost 4 allies 18170 | -7/Factory | Repaired Enh. Autogun 18520 | -7/Factory | Discovered exit to Factory (range 11) 19239 | -7/Factory | Identified exit to Garrison 19239 | -7/Factory | Entered Garrison 19345 | -7/Garrison | System corruption reached 10% 19411 | -7/Garrison | Triggered checkpoint 19413 | -7/Garrison | Garrison Relay disabled 19487 | -7/Garrison | Discovered exit to Factory (range 61) 19487 | -7/Garrison | Discovered exit to Factory (range 54) 19487 | -7/Garrison | Discovered exit to Factory (range 70) 19609 | -7/Garrison | Triggered checkpoint 19633 | -7/Garrison | Build established: Bothacker-Tank 19719 | -7/Garrison | Triggered checkpoint 19746 | -7/Garrison | Expanded RIF knowledge: Autooverride 19779 | -7/Garrison | Garrison Relay disabled 19792 | -7/Garrison | Identified 1B-0RG's Assimilator 19941 | -7/Garrison | Entered Factory 19941 | -6/Factory | Accompanied by 3 allies 19941 | -6/Factory | Evolved 2 slots: Power x1, Utility x1 20036 | -6/Factory | Assimilating Smith 5a into Collective. 20111 | -6/Factory | Build established: Botlord-Mutant 20606 | -6/Factory | Assimilating Slayer 5a into Collective. 20747 | -6/Factory | P-70 Sage assimilated allied Guardian 4b 20768 | -6/Factory | Assimilating Hacker 5a into Collective. 20790 | -6/Factory | Lost 3 allies 20870 | -6/Factory | Garrison activated, responded to threat 20874 | -6/Factory | Assimilating Guardian 5b into Collective. 20901 | -6/Factory | Identified exit to Garrison 20968 | -6/Factory | Cargo convoy interrupted 20972 | -6/Factory | Entered Garrison 20972 | -6/Garrison | Accompanied by 1 ally 20987 | -6/Garrison | Assimilating Guardian 5c into Collective. 21089 | -6/Garrison | Garrison Relay disabled 21117 | -6/Garrison | Triggered checkpoint 21151 | -6/Garrison | Assimilating Slayer 5b into Collective. 21223 | -6/Garrison | Assimilating Guardian 5e into Collective. 21334 | -6/Garrison | Spotted B-75 Beast 21350 | -6/Garrison | Allies destroyed B-75 Beast 21468 | -6/Garrison | Spotted B-75 Beast 21487 | -6/Garrison | Assimilating Beast 5a into Collective. 21495 | -6/Garrison | Assimilating Fighter 5a into Collective. 21508 | -6/Garrison | Triggered checkpoint 21512 | -6/Garrison | Assimilating Gladiator 5a into Collective. 21516 | -6/Garrison | Triggered checkpoint 21540 | -6/Garrison | Lost 4 allies 21588 | -6/Garrison | Triggered checkpoint 21647 | -6/Garrison | Discovered new exit (range 11) 21652 | -6/Garrison | Triggered checkpoint 21671 | -6/Garrison | Assimilating Hacker 5b into Collective. 21708 | -6/Garrison | Assimilating Hacker 5c into Collective. 21944 | -6/Garrison | Triggered checkpoint 22028 | -6/Garrison | Expanded RIF knowledge: Program Shield 22034 | -6/Garrison | Discovered new exit (range 11) 22068 | -6/Garrison | Spotted B-86 Titan 22077 | -6/Garrison | Rewired B-90 Cyclops 22182 | -6/Garrison | Spotted B-75 Beast 22185 | -6/Garrison | Spotted B-75 Beast 22194 | -6/Garrison | Assimilating Beast 5b into Collective. 22209 | -6/Garrison | Allies destroyed B-75 Beast 22240 | -6/Garrison | Lost 3 allies 22298 | -6/Garrison | Discovered new exit (range 7) 22307 | -6/Garrison | Assimilating Guardian 5g into Collective. 22343 | -6/Garrison | Found embedded Infiltrators 22354 | -6/Garrison | Triggered checkpoint 22369 | -6/Garrison | Assimilating Guardian 5h into Collective. 22450 | -6/Garrison | Triggered checkpoint 22587 | -6/Garrison | Entered Factory 22587 | -6/Factory | Accompanied by 9 allies 22604 | -6/Factory | Garrison activated, responded to threat 22783 | -6/Factory | Identified exit to Garrison 23011 | -6/Factory | Entered Garrison 23011 | -6/Garrison | Accompanied by 9 allies 23055 | -6/Garrison | Triggered checkpoint 23138 | -6/Garrison | Lost 4 allies 23293 | -6/Garrison | Triggered checkpoint 23305 | -6/Garrison | Triggered checkpoint 23363 | -6/Garrison | Garrison Relay disabled 23406 | -6/Garrison | Discovered new exit (range 15) 23413 | -6/Garrison | Triggered checkpoint 23420 | -6/Garrison | Assimilating Guardian 5k into Collective. 23495 | -6/Garrison | Assimilating Smith 5b into Collective. 23573 | -6/Garrison | Found embedded Infiltrators 23659 | -6/Garrison | Triggered checkpoint 23754 | -6/Garrison | Rescued a captive Derelict 23755 | -6/Garrison | Rescued a captive Derelict 23791 | -6/Garrison | Discovered new exit (range 13) 23797 | -6/Garrison | Rewired Striker 23806 | -6/Garrison | Rewired Executioner 23819 | -6/Garrison | Triggered checkpoint 23851 | -6/Garrison | Triggered checkpoint 24019 | -6/Garrison | Triggered checkpoint 24029 | -6/Garrison | Triggered checkpoint 24079 | -6/Garrison | Triggered checkpoint 24196 | -6/Garrison | Expanded RIF knowledge: Alert ID Control 24217 | -6/Garrison | Discovered new exit (range 10) 24279 | -6/Garrison | Entered Factory 24279 | -5/Factory | Accompanied by 18 allies 24279 | -5/Factory | Evolved 2 slots: Propulsion x1, Utility x1 24361 | -5/Factory | Garrison activated, responded to threat 24491 | -5/Factory | Unchained authorized (1B-0RG) 24579 | -5/Factory | Assimilating Soldier 6a into Collective. 24773 | -5/Factory | Assimilating Smith 6a into Collective. 24784 | -5/Factory | Lost 7 allies 24879 | -5/Factory | First assault squad dispatched 25084 | -5/Factory | Identified exit to Garrison 25129 | -5/Factory | Entered Garrison 25129 | -5/Garrison | Accompanied by 7 allies 25224 | -5/Garrison | Found embedded Infiltrators 25269 | -5/Garrison | Triggered checkpoint 25281 | -5/Garrison | Spotted B-75 Beast 25290 | -5/Garrison | Assimilating Beast 6a into Collective. 25361 | -5/Garrison | Triggered checkpoint 25371 | -5/Garrison | Discovered new exit (range 15) 25409 | -5/Garrison | Triggered checkpoint 25411 | -5/Garrison | Assimilating Soldier 6c into Collective. 25416 | -5/Garrison | Assimilating Soldier 6d into Collective. 25479 | -5/Garrison | Triggered checkpoint 25547 | -5/Garrison | Discovered new exit (range 10) 25581 | -5/Garrison | Triggered checkpoint 25705 | -5/Garrison | Expanded RIF knowledge: Patrol Navigation 25824 | -5/Garrison | Assimilating Sentinel 6a into Collective. 25874 | -5/Garrison | Discovered new exit (range 5) 25889 | -5/Garrison | Triggered checkpoint 25890 | -5/Garrison | Assimilating Sentinel 6b into Collective. 25900 | -5/Garrison | Assimilating Sentinel 6c into Collective. 25932 | -5/Garrison | Expanded RIF knowledge: Coupler Efficiency 25984 | -5/Garrison | Entered Factory 25984 | -5/Factory | Accompanied by 7 allies 26175 | -5/Factory | Unchained authorized (1B-0RG) 26201 | -5/Factory | Discovered new exit (range 10) 26360 | -5/Factory | Assimilating Sage 6a into Collective. 26544 | -5/Factory | Identified exit to Garrison 26677 | -5/Factory | Cargo convoy interrupted 26690 | -5/Factory | Garrison activated, responded to threat 26696 | -5/Factory | Assimilating Beamer 6a into Collective. 26707 | -5/Factory | Assimilating Chaingunner 6a into Collective. 26723 | -5/Factory | Assimilating Sage 6b into Collective. 26739 | -5/Factory | Found Prototype Protection 26776 | -5/Factory | Lost 5 allies 26786 | -5/Factory | Found Prototype Launcher 26786 | -5/Factory | Identified Adv. Micro-nuke Launcher 26792 | -5/Factory | Assimilating Sentinel 6d into Collective. 26841 | -5/Factory | Identified Centrium Heavy Armor Plating 26854 | -5/Factory | Entered Garrison 26854 | -5/Garrison | Accompanied by 8 allies 26918 | -5/Garrison | Triggered checkpoint 27019 | -5/Garrison | Triggered checkpoint 27021 | -5/Garrison | Spotted B-75 Beast 27021 | -5/Garrison | P-70 Sage assimilated allied AE-1YZ(x) 27028 | -5/Garrison | Triggered checkpoint 27072 | -5/Garrison | Assimilating Soldier 6f into Collective. 27084 | -5/Garrison | Lost 6 allies 27134 | -5/Garrison | Discovered new exit (range 10) 27183 | -5/Garrison | Assimilating Soldier 6g into Collective. 27190 | -5/Garrison | Assimilating Soldier 6h into Collective. 27315 | -5/Garrison | Garrison Relay disabled 27552 | -5/Garrison | Discovered new exit (range 14) 27579 | -5/Garrison | Expanded RIF knowledge: Zone Cloak 27626 | -5/Garrison | Triggered checkpoint 27638 | -5/Garrison | Garrison Relay disabled 27686 | -5/Garrison | Learned Factory security intel 27726 | -5/Garrison | Triggered checkpoint 27844 | -5/Garrison | Spotted B-75 Beast 27857 | -5/Garrison | Assimilating Beast 6b into Collective. 27867 | -5/Garrison | Found Relay Coupler [Proto] 27872 | -5/Garrison | Found Relay Coupler [Proto] 27945 | -5/Garrison | Discovered new exit (range 11) 27954 | -5/Garrison | Triggered checkpoint 27988 | -5/Garrison | Triggered checkpoint 28041 | -5/Garrison | System corruption reached 10% 28041 | -5/Garrison | Assimilating Sage 6c into Collective. 28250 | -5/Garrison | Triggered checkpoint 28409 | -5/Garrison | Entered Factory 28409 | -4/Factory | Accompanied by 13 allies 28409 | -4/Factory | Evolved 2 slots: Power x1, Utility x1 28589 | -4/Factory | Unchained authorized (1B-0RG) 28806 | -4/Factory | Assimilating Machinist 7a into Collective. 29020 | -4/Factory | Spotted B-86 Titan 29024 | -4/Factory | Assimilated Titan 7a with formatsys_high 29052 | -4/Factory | Lost 3 allies 29123 | -4/Factory | Allies destroyed B-86 Titan 29146 | -4/Factory | Discovered new exit (range 5) 29159 | -4/Factory | First assault squad dispatched 29469 | -4/Factory | Found Quantum Capacitor 29589 | -4/Factory | Lost 3 allies 29594 | -4/Factory | Discovered new exit (range 6) 29634 | -4/Factory | Assimilating Enforcer 7a into Collective. 29640 | -4/Factory | Assimilating Warrior 7a into Collective. 29656 | -4/Factory | Assimilating Artificer 7a into Collective. 29660 | -4/Factory | Attached Meta Core, gained temporary slots: Propulsion, Utility, Weapon 29791 | -4/Factory | Lost 3 allies 29791 | -4/Factory | Assimilating Excavator 7a into Collective. 29845 | -4/Factory | Assimilating Sage 7a into Collective. 29952 | -4/Factory | Assimilating Processor 7a into Collective. 30075 | -4/Factory | Assimilating Administrator 7a into Collective. 30162 | -4/Factory | Lost 3 allies 30208 | -4/Factory | Assimilating Engineer 7a into Collective. 30252 | -4/Factory | Assimilating Assassin 7a into Collective. 30258 | -4/Factory | Assimilating Assassin 7b into Collective. 30372 | -4/Factory | Identified exit to Garrison 30380 | -4/Factory | Assimilating Veteran 7b into Collective. 30383 | -4/Factory | Assimilating Veteran 7c into Collective. 30426 | -4/Factory | Entered Garrison 30426 | -4/Garrison | Accompanied by 2 allies 30445 | -4/Garrison | Found embedded Infiltrators 30520 | -4/Garrison | Triggered checkpoint 30523 | -4/Garrison | Assimilating Sentinel 7b into Collective. 30527 | -4/Garrison | Assimilating Sentinel 7c into Collective. 30545 | -4/Garrison | Garrison Relay disabled 30602 | -4/Garrison | Discovered new exit (range 31) 30602 | -4/Garrison | Discovered new exit (range 61) 30602 | -4/Garrison | Discovered new exit (range 59) 30650 | -4/Garrison | Triggered checkpoint 30668 | -4/Garrison | Triggered checkpoint 30692 | -4/Garrison | Triggered checkpoint 30740 | -4/Garrison | Triggered checkpoint 30919 | -4/Garrison | Expanded RIF knowledge: Code Merge 30948 | -4/Garrison | Triggered checkpoint 30952 | -4/Garrison | Assimilating Sentinel 7d into Collective. 30973 | -4/Garrison | Garrison Relay disabled 31045 | -4/Garrison | Entered Factory 31045 | -4/Factory | Accompanied by 9 allies 31085 | -4/Factory | Identified exit to Garrison 31101 | -4/Factory | Entered Garrison 31101 | -4/Garrison | Accompanied by 8 allies 31105 | -4/Garrison | Triggered checkpoint 31131 | -4/Garrison | Discovered new exit (range 3) 31150 | -4/Garrison | Assimilating Beamer 7a into Collective. 31199 | -4/Garrison | Lost 4 allies 31319 | -4/Garrison | Triggered checkpoint 31339 | -4/Garrison | Garrison Relay disabled 31385 | -4/Garrison | Triggered checkpoint 31394 | -4/Garrison | Triggered checkpoint 31400 | -4/Garrison | Assimilating Beamer 7b into Collective. 31437 | -4/Garrison | Core integrity fell below 50% 31449 | -4/Garrison | Assimilating Sage 7b into Collective. 31474 | -4/Garrison | Assimilating Veteran 7g into Collective. 31493 | -4/Garrison | Lost 8 allies 31514 | -4/Garrison | Assimilating Virus 7a into Collective. 31517 | -4/Garrison | Assimilating Virus 7b into Collective. 31550 | -4/Garrison | Lost 3 allies 31601 | -4/Garrison | Assimilating Veteran 7h into Collective. 31647 | -4/Garrison | Assimilating Veteran 7i into Collective. 31650 | -4/Garrison | Assimilating Veteran 7j into Collective. 31703 | -4/Garrison | Triggered checkpoint 31749 | -4/Garrison | Triggered checkpoint 31753 | -4/Garrison | Assimilating Sentinel 7e into Collective. 31756 | -4/Garrison | Assimilating Sentinel 7f into Collective. 31780 | -4/Garrison | Expanded RIF knowledge: Command Fork 31813 | -4/Garrison | Garrison Relay disabled 31834 | -4/Garrison | Expanded RIF knowledge: Autooverride 31905 | -4/Garrison | Discovered new exit (range 5) 31940 | -4/Garrison | Found embedded Infiltrators 32082 | -4/Garrison | Discovered new exit (range 10) 32156 | -4/Garrison | Assimilating Artificer 7b into Collective. 32221 | -4/Garrison | Triggered checkpoint 32250 | -4/Garrison | Garrison Relay disabled 32466 | -4/Garrison | Discovered new exit (range 10) 32475 | -4/Garrison | Triggered checkpoint 32499 | -4/Garrison | Triggered checkpoint 32502 | -4/Garrison | Garrison Relay disabled 32669 | -4/Garrison | Triggered checkpoint 32711 | -4/Garrison | Rescued a captive Derelict 32712 | -4/Garrison | Rescued a captive Derelict 32733 | -4/Garrison | Garrison Relay disabled 32934 | -4/Garrison | Entered Factory 32934 | -4/Factory | Accompanied by 16 allies 32951 | -4/Factory | Discovered new exit (range 22) 33090 | -4/Factory | Discovered new exit (range 9) 33514 | -4/Factory | Lost 3 allies 33623 | -4/Factory | Identified exit to Garrison 33645 | -4/Factory | Entered Garrison 33645 | -4/Garrison | Accompanied by 11 allies 33677 | -4/Garrison | Expanded RIF knowledge: Code Merge 33749 | -4/Garrison | Triggered checkpoint 33762 | -4/Garrison | Assimilating Sage 7c into Collective. 33766 | -4/Garrison | Assimilating Sage 7d into Collective. 33768 | -4/Garrison | Rescued a captive Derelict 33768 | -4/Garrison | Rescued a captive Derelict 33808 | -4/Garrison | Garrison Relay disabled 33958 | -4/Garrison | Spotted B-86 Titan 33971 | -4/Garrison | Allies destroyed B-86 Titan 33978 | -4/Garrison | Triggered checkpoint 33979 | -4/Garrison | Triggered checkpoint 33993 | -4/Garrison | Triggered checkpoint 34053 | -4/Garrison | Triggered checkpoint 34146 | -4/Garrison | Lost 5 allies 34168 | -4/Garrison | Garrison Relay disabled 34183 | -4/Garrison | Triggered checkpoint 34208 | -4/Garrison | Discovered new exit (range 2) 34218 | -4/Garrison | Spotted Executioner 34225 | -4/Garrison | Assimilating Executioner into Collective. 34237 | -4/Garrison | Rewired Striker 34417 | -4/Garrison | Destroyed Striker 34421 | -4/Garrison | Assimilating Swordsman 7a into Collective. 34440 | -4/Garrison | Assimilating Disruptor 7a into Collective. 34471 | -4/Garrison | Garrison Relay disabled 34485 | -4/Garrison | Lost 5 allies 34590 | -4/Garrison | Discovered new exit (range 13) 34779 | -4/Garrison | Discovered new exit (range 10) 34787 | -4/Garrison | Triggered checkpoint 34792 | -4/Garrison | Core integrity fell below 20% 34824 | -4/Garrison | Garrison Relay disabled 34935 | -4/Garrison | Entered Research 34935 | -3/Research | Accompanied by 13 allies 34935 | -3/Research | Evolved 2 slots: Utility x2 35058 | -3/Research | Assimilating Machinist 8a into Collective. 35185 | -3/Research | First assault squad dispatched 35264 | -3/Research | Assimilating Master 8a into Collective. 35293 | -3/Research | Assimilated Heavy ARC 8a with formatsys_deep 35772 | -3/Research | Found Quantum Capacitor 36224 | -3/Research | Watched by a mysterious "MATRIX" hacker. 36375 | -3/Research | Lost 4 allies 36377 | -3/Research | Spotted B-86 Titan 36389 | -3/Research | Assimilating Master 8b into Collective. 36393 | -3/Research | P-80 Master assimilated allied Rainmaker 7d 36395 | -3/Research | Assimilated Titan 8a with formatsys_high 36401 | -3/Research | Assimilating Master 8c into Collective. 36423 | -3/Research | Lost 5 allies 36685 | -3/Research | Discovered new exit (range 4) 36693 | -3/Research | Identified exit to Research 36976 | -3/Research | Discovered exit to Research (range 4) 37088 | -3/Research | Garrison activated, responded to threat 37116 | -3/Research | Assimilating Champion 8b into Collective. 37176 | -3/Research | Lost 7 allies 37211 | -3/Research | Spotted B-86 Titan 37214 | -3/Research | Assimilated Titan 8b with formatsys_high 37471 | -3/Research | Found Centrium Heavy Armor Plating 37532 | -3/Research | Assimilating Assassin 8a into Collective. 37547 | -3/Research | Lost 4 allies 37574 | -3/Research | Assimilating Artificer 8a into Collective. 37665 | -3/Research | Discovered new exit (range 11) 37948 | -3/Research | Entered Quarantine 37948 | -3/Quarantine | Accompanied by 6 allies 37951 | -3/Quarantine | Cryocooling Duct disabled 37966 | -3/Quarantine | Ambient heat levels rising (+20) 37966 | -3/Quarantine | Non-combat units ordered to evacuate 38017 | -3/Quarantine | Assimilating Master 8d into Collective. 38156 | -3/Quarantine | Discovered exit to Research (range 11) 38172 | -3/Quarantine | Assimilating Veteran 8h into Collective. 38460 | -3/Quarantine | Found Alien Artifact 38485 | -3/Quarantine | Spotted Alpha 7 38490 | -3/Quarantine | Assimilated Alpha 7 with formatsys_high 38534 | -3/Quarantine | Identified Transdimensional Reconstructor 38598 | -3/Quarantine | Found Alien Artifact 38709 | -3/Quarantine | Found Alien Artifact 38759 | -3/Quarantine | Garrison activated, responded to threat 38837 | -3/Quarantine | Identified exit to Garrison 38845 | -3/Quarantine | Entered Garrison 38845 | -3/Garrison | Accompanied by 7 allies 38927 | -3/Garrison | Triggered checkpoint 38932 | -3/Garrison | Garrison Relay disabled 39075 | -3/Garrison | Triggered checkpoint 39139 | -3/Garrison | Triggered checkpoint 39169 | -3/Garrison | System corruption reached 10% 39183 | -3/Garrison | Triggered checkpoint 39344 | -3/Garrison | Garrison Relay disabled 39385 | -3/Garrison | Triggered checkpoint 39387 | -3/Garrison | Assimilating Warden 8h into Collective. 39416 | -3/Garrison | Discovered exit to Research (range 2) 39433 | -3/Garrison | Expanded RIF knowledge: Watcher Feeds 39810 | -3/Garrison | Discovered exit to Research (range 10) 39865 | -3/Garrison | Triggered checkpoint 39906 | -3/Garrison | Garrison Relay disabled 39965 | -3/Garrison | Garrison Relay disabled 40050 | -3/Garrison | Expanded RIF knowledge: Zone Cloak 40173 | -3/Garrison | Triggered checkpoint 40209 | -3/Garrison | Triggered checkpoint 40329 | -3/Garrison | Triggered checkpoint 40350 | -3/Garrison | Garrison Relay disabled 40408 | -3/Garrison | Discovered exit to Research (range 9) 40468 | -3/Garrison | Entered Research 40468 | -2/Research | Accompanied by 12 allies 40468 | -2/Research | Evolved 2 slots: Utility x2 41051 | -2/Research | Cargo convoy interrupted 41070 | -2/Research | Spotted Executioner 41093 | -2/Research | Allies destroyed Executioner 41099 | -2/Research | Found Prototype Processor 41099 | -2/Research | Identified Exp. Armor Integrity Analyzer 41110 | -2/Research | Lost 6 allies 41218 | -2/Research | Assimilating Warden 9b into Collective. 41257 | -2/Research | Assimilating Master 9a into Collective. 41268 | -2/Research | Assimilating Terminator 9b into Collective. 41321 | -2/Research | Lost 6 allies 41339 | -2/Research | Unchained authorized (6S-H0T) 41351 | -2/Research | Assimilating Enforcer 9b into Collective. 41611 | -2/Research | Discovered new exit (range 25) 41657 | -2/Research | Assimilating Electro 9a into Collective. 41667 | -2/Research | Assimilating Electro 9b into Collective. 41687 | -2/Research | Lost 6 allies 41727 | -2/Research | Identified exit to Testing 41728 | -2/Research | Entered Testing 41728 | -2/Testing | Accompanied by 1 ally 41745 | -2/Testing | Found Prototype Energy Cannon 41745 | -2/Testing | Identified Potential Cannon 41749 | -2/Testing | Found Potential Cannon 41799 | -2/Testing | Identified Core Reset Matrix 41799 | -2/Testing | Identified Subatomic Replicator 41974 | -2/Testing | Spotted Alpha 7 42010 | -2/Testing | Build established: Botlord-Tank 42062 | -2/Testing | Discovered new exit (range 26) 42095 | -2/Testing | Destroyed Alpha 7 42146 | -2/Testing | System corruption reached 10% 42225 | -2/Testing | Found Portable AFG 42297 | -2/Testing | Found Prototype Hackware 42412 | -2/Testing | Build established: Botlord-Executioner 42442 | -2/Testing | Found Prototype Ballistic Gun 42443 | -2/Testing | Identified Hyp. Multirail 42522 | -2/Testing | Spotted PG-0TY5KAIQXJ 42537 | -2/Testing | Destroyed PG-0TY5KAIQXJ 42717 | -2/Testing | Found Prototype Energy Cannon 42717 | -2/Testing | Identified Hpw. Disruptor Cannon 42751 | -2/Testing | Rewired PX-H19C3SOGTO 43034 | -2/Testing | Found Prototype Device 43034 | -2/Testing | Identified 2N-1CE's Frost Array 43094 | -2/Testing | Found Prototype Energy Cannon 43094 | -2/Testing | Identified Disintegrator 43641 | -2/Testing | Found Prototype Ballistic Cannon 43641 | -2/Testing | Identified Omega Cannon 43650 | -2/Testing | Unchained authorized (6S-H0T) 43719 | -2/Testing | Spotted Fortress 43740 | -2/Testing | Assimilated Fortress with formatsys_high 43821 | -2/Testing | Found Prototype Device 43821 | -2/Testing | Identified Exp. Force Field 43952 | -2/Testing | Discovered new exit (range 6) 43952 | -2/Testing | Discovered new exit (range 6) 43970 | -2/Testing | Entered Section 7 43970 | -2/Section 7 | Accompanied by 1 ally 44126 | -2/Section 7 | Spotted B-90 Cyclops 44156 | -2/Section 7 | Destroyed B-90 Cyclops 44434 | -2/Section 7 | Spotted S7 Guard 44435 | -2/Section 7 | Autoassimilated S7 Guard with RIF 44475 | -2/Section 7 | Found Alien Artifact 45088 | -2/Section 7 | Found Alien Artifact 45160 | -2/Section 7 | Discovered new exit (range 16) 45250 | -2/Section 7 | Lost 3 allies 45280 | -2/Section 7 | Identified Navigation Efficiency Matrix 45280 | -2/Section 7 | Identified Integrity Redistributor 45280 | -2/Section 7 | Identified Ghost Barrier 45369 | -2/Section 7 | Garrison activated, responded to threat 45653 | -2/Section 7 | Warped through subspace 45970 | -2/Section 7 | First assault squad dispatched 46035 | -2/Section 7 | Spotted S7 Guard 46045 | -2/Section 7 | Lost 3 allies 46053 | -2/Section 7 | Found Alien Artifact 46091 | -2/Section 7 | Destroyed S7 Guard 46094 | -2/Section 7 | Found Corrupted Prototype Protection 46094 | -2/Section 7 | Identified Hvy. Regenerative Plating 46114 | -2/Section 7 | Lost 4 parts (1p1u2w) 46176 | -2/Section 7 | Spotted Executioner 46178 | -2/Section 7 | Spotted Executioner 46200 | -2/Section 7 | Destroyed Executioner 46211 | -2/Section 7 | Destroyed Executioner 46217 | -2/Section 7 | Core integrity fell below 50% 46226 | -2/Section 7 | System corruption reached 30% 46264 | -2/Section 7 | Found Exp. Core Analyzer 46274 | -2/Section 7 | Found Exp. Core Analyzer 46326 | -2/Section 7 | Spotted B-99 Colossus 46360 | -2/Section 7 | Destroyed B-99 Colossus 46494 | -2/Section 7 | Build established: Scavenger-Executioner 46500 | -2/Section 7 | Scanned by Researcher 46501 | -2/Section 7 | Intercept squad dispatched 46517 | -2/Section 7 | Spotted Tracker 46517 | -2/Section 7 | Spotted Tracker 46526 | -2/Section 7 | Destroyed Tracker 46529 | -2/Section 7 | Destroyed Tracker 46550 | -2/Section 7 | Spotted Combat Programmer 46556 | -2/Section 7 | Spotted Combat Programmer 46574 | -2/Section 7 | Destroyed Combat Programmer 46579 | -2/Section 7 | Destroyed Combat Programmer 46590 | -2/Section 7 | Found Alien Artifact 46590 | -2/Section 7 | Identified LRC Matter Compressor 46590 | -2/Section 7 | Installed LRC Matter Compressor, increased matter storage capacity (+125) 46660 | -2/Section 7 | Intercept squad dispatched 46671 | -2/Section 7 | Spotted Tracker 46672 | -2/Section 7 | Spotted Tracker 46676 | -2/Section 7 | Destroyed Tracker 46679 | -2/Section 7 | Destroyed Tracker 46695 | -2/Section 7 | Found Alien Artifact 46695 | -2/Section 7 | Identified Integrated Reactor 46695 | -2/Section 7 | Installed Integrated Reactor, increased core energy generation (+10) 46697 | -2/Section 7 | Spotted Combat Programmer 46698 | -2/Section 7 | Found Integrated Reactor 46698 | -2/Section 7 | Installed Integrated Reactor, increased core energy generation (+10) 46704 | -2/Section 7 | Spotted Combat Programmer 46705 | -2/Section 7 | Destroyed Combat Programmer 46719 | -2/Section 7 | Destroyed Combat Programmer 47167 | -2/Section 7 | Spotted S7 Guard 47190 | -2/Section 7 | Destroyed S7 Guard 47208 | -2/Section 7 | Found Alien Artifact 47208 | -2/Section 7 | Identified Core Membrane 47208 | -2/Section 7 | Installed Core Membrane, gained immunity to corruption 47297 | -2/Section 7 | Lost 3 parts (1p2w) 47303 | -2/Section 7 | Lost 3 allies 47328 | -2/Section 7 | Garrison activated, responded to threat 47340 | -2/Section 7 | Identified exit to Garrison 47340 | -2/Section 7 | Entered Garrison 47364 | -2/Garrison | Expanded RIF knowledge: Autooverride 47531 | -2/Garrison | Garrison Relay disabled 47594 | -2/Garrison | Spotted B-90 Cyclops 47651 | -2/Garrison | Destroyed B-90 Cyclops 47838 | -2/Garrison | Triggered checkpoint 47842 | -2/Garrison | Triggered checkpoint 47868 | -2/Garrison | Lost 4 parts (1p1n2w) 47896 | -2/Garrison | Lost 3 allies 47937 | -2/Garrison | Triggered checkpoint 47995 | -2/Garrison | Garrison Relay disabled 48102 | -2/Garrison | Found Relay Coupler [Proto] 48105 | -2/Garrison | Found Relay Coupler [Proto] 48136 | -2/Garrison | Identified Core Physics Calibrator 48240 | -2/Garrison | Discovered new exit (range 14) 48368 | -2/Garrison | Triggered checkpoint 48432 | -2/Garrison | Triggered checkpoint 48432 | -2/Garrison | Build established: Botlord-Executioner 48489 | -2/Garrison | Garrison Relay disabled 48522 | -2/Garrison | Garrison Relay disabled 48591 | -2/Garrison | Discovered new exit (range 11) 48876 | -2/Garrison | Discovered new exit (range 14) 48952 | -2/Garrison | Triggered checkpoint 48983 | -2/Garrison | Garrison Relay disabled 49073 | -2/Garrison | Entered Access 49073 | -1/Access | Evolved 2 slots (calibrated): Power x1, Propulsion x2, Utility x1, -Weapon x2 49254 | -1/Access | Unchained authorized (6S-H0T) 49375 | -1/Access | Build established: Botlord-Gunner 49478 | -1/Access | Lost 3 allies 49647 | -1/Access | Lost 3 allies 49799 | -1/Access | Garrison activated, responded to threat 49820 | -1/Access | Intercept squad dispatched 49824 | -1/Access | Used Integrity Redistributor, redistributed integrity from core (-299) 49827 | -1/Access | Used Subatomic Replicator to replicate Hvy. Neutron Cannon 49829 | -1/Access | Spotted Tracker 49830 | -1/Access | Spotted Tracker 49840 | -1/Access | Destroyed Tracker 49846 | -1/Access | Destroyed Tracker 49861 | -1/Access | Lost 6 allies 49917 | -1/Access | Spotted Combat Programmer 49918 | -1/Access | Spotted Combat Programmer 49922 | -1/Access | Destroyed Combat Programmer 49926 | -1/Access | Destroyed Combat Programmer 50043 | -1/Access | Lost 11 parts (4p2n3u2w) 50073 | -1/Access | First assault squad dispatched 50278 | -1/Access | Found Prototype Device 50278 | -1/Access | Identified Exp. Shock Absorption System 50453 | -1/Access | Discovered new exit (range 7) 50630 | -1/Access | Entered Command 50718 | -1/Command | Build established: Generator-Tank 50880 | -1/Command | First assault squad dispatched 51016 | -1/Command | Found Quantum Capacitor 51019 | -1/Command | Found Quantum Capacitor 51235 | -1/Command | Build established: Botlord-Gunner 51256 | -1/Command | Spotted B-99 Colossus 51259 | -1/Command | Autoassimilated Colossus 10a with RIF 51396 | -1/Command | Core integrity fell below 50% 51425 | -1/Command | Spotted Alpha 7 51426 | -1/Command | Spotted Alpha 7 51445 | -1/Command | Assimilated Alpha 7 with formatsys_high 51478 | -1/Command | Allies destroyed Alpha 7 51495 | -1/Command | Found Corrupted Prototype Ballistic Gun 51501 | -1/Command | Lost 3 allies 51504 | -1/Command | Lost 3 parts (1u2w) 51586 | -1/Command | Spotted Executioner 51586 | -1/Command | Spotted Executioner 51586 | -1/Command | Spotted Striker 51586 | -1/Command | Spotted Executioner 51586 | -1/Command | Spotted Executioner 51586 | -1/Command | Spotted Striker 51592 | -1/Command | Autoassimilated Striker with RIF 51619 | -1/Command | Destroyed Executioner 51621 | -1/Command | Destroyed Executioner 51622 | -1/Command | Spotted B-99 Colossus 51641 | -1/Command | Assimilated Colossus 10b with formatsys_high 51643 | -1/Command | Lost 5 allies 51655 | -1/Command | Spotted B-99 Colossus 51656 | -1/Command | Assimilated Colossus 10c with formatsys_high 51680 | -1/Command | Found Prototype Processor 51680 | -1/Command | Identified Exp. Targeting Computer 51683 | -1/Command | Found Exp. Core Analyzer 51720 | -1/Command | Build established: Botlord-Mutant 51803 | -1/Command | Spotted M Guard 51803 | -1/Command | Spotted M Guard 51803 | -1/Command | Spotted Combat Programmer 51806 | -1/Command | Spotted Combat Programmer 51845 | -1/Command | Assimilated M Guard with formatsys_high 51846 | -1/Command | Allies destroyed Combat Programmer 51852 | -1/Command | Destroyed Combat Programmer 51925 | -1/Command | Identified Multirail 52187 | -1/Command | High security lockdown imminent 52267 | -1/Command | High security lockdown engaged 52310 | -1/Command | Discovered new exit (range 8) 52395 | -1/Command | Spotted Striker 52395 | -1/Command | Spotted Executioner 52395 | -1/Command | Spotted Executioner 52395 | -1/Command | Spotted Striker 52396 | -1/Command | Allies destroyed Executioner 52397 | -1/Command | P-80 Master assimilated allied Annihilator 10a 52398 | -1/Command | Allies destroyed Executioner 52403 | -1/Command | Allies destroyed Striker 52479 | -1/Command | Spotted Striker 52488 | -1/Command | All MAIN.C guards destroyed 52490 | -1/Command | Spotted Striker 52490 | -1/Command | Spotted Executioner 52498 | *** | Escaped! Last Messages --------------- 52491_ Slug penetrates Executioner. 52491_ Slug penetrates P-80 Master. 52492_ The unstable cave ceiling collapses. 52493_ Slug penetrates D-83 Annihilator. 52493_ Slug penetrates Striker. 52493_ Slug penetrates D-83 Annihilator. 52493_ Slug penetrates Executioner. 52494_ Colossus 10c destroyed. 52495_ Slug penetrates Wall. 52495_ P-80 Master resets D-83 Annihilator, system corruption cleaned. 52496_ Helical Railgun destroyed. 52496_ Adv. Datajack destroyed. 52497_ Slug penetrates Executioner. 52497_ Slug penetrates M-36 Artificer. 52497_ Slug penetrates D-83 Annihilator. 52497_ Slug penetrates P-80 Master. 52497_ P-80 Master suffers critical hit (Destroy). 52497_ P-80 Master destroyed. 52497_ Slug penetrates D-83 Annihilator. 52498_ The unstable cave ceiling collapses. Map ----- +----------------------------------------------------+ | ?????????????????????????? ##### #??????????? | | ?????????????????????????? + #??????????? | | ?????????????????????????? ?"" # ######?????? | | ??????????????????????????? ?" # # #?????? | | ?????????????????????????? ?"" + # #?????? | | ?????????????????????????? ## # #?????? | | ?????????????????????????? ## # #?????? | | ?????????????????????????###+##### + #?????? | | ??????????????????????????## #???# # #?????? | | ??????????????????????????? #???# # #?????? | | ??????????????????????????####???# # #?????? | | ?????????????????????????????????# # #?????? | | ?????????????????????????????????# ##+###?????? | | ?????????????????????????????????# # #?????? | | ?????????????????????????????????# # ! #?????? | | ?????????????????????????????????# # #?????? | | ?????????????????????????????????# + #?????? | | ?????????????????????????????????#### # #?????? | | ???????????????????????###??????????# # ] #?????? | | ???????????????????#####;########???# # #?????? | | ???????????????????# #???# ######?????? | | ???????????????????# #####/##?????????? | | ???????????????????# ^ ^ ^^ ## #?????????? | | ???????????????????# ^ ## #?????????? | | ???????????????????# ^ ## #?????????? | | ???????????????????# ^ @" ## ########### | | ???????????????????# ^ "" BB ## + | | ???????????????????# ^ K BB ## #### | | ???????????????????# ^ ## #??# | | ???????????????????# ## #??# [[ | | ???????????????????# ## ##########[ | | ???????????????????# ########;## !;% | | ???????????????????## # #?# ! # ;% | | ????####????????????# ###?# !;% ;# | | ? ??########?# % #???# %%*% ## | | ? +? #?# #???# [=% #? | | ?? ## ??# #???# =%%; #? | | ?? ??# % ##???# % # ## | | ???? ??# !%% %i #???# ;= + | | ????? * = ??# ppE[ * #???# % w# ## | | ?????? # % ??# =[%ddK# #???# % ######? | | ??###+## ??##%p%=%[%%##???# ! #?????? | | ??# ???# !%*[%=###???# % #?????? | | ### ! # ??# =*!!%# ##?#####;C###?????? | | #"" ??# m= [ "###"!!!=%!#??????? | | #"" # ! ??# %! % ! ! % !! #??????? | | #"" ## [%#####;;= =%% ! !##!= #??????? | | #T " =+%%/ !![%[ %! #### ##??????? | | #"" # =%%[!%% ! #??# ######### | | #"" # *== %=% % """#+####+## | +----------------------------------------------------+ Best States ------------- Heat Dissipation 171 Energy Generation 107 Energy Capacity 920 Matter Stores 550 Matter Capacity 800 Sight Range 23 Terrain Scan Density 10 Jamming Range 14 Armor Coverage 1200 Resistance: KI 20 Resistance: EX 75 Core Shielding 30 Power Shielding 66 Evasion (%) 55 Targeting Accuracy 12 Core Analysis 12 Armor Integrity Analysis 50 Recoil Reduction 5 Particle Charging 25 Defensive Hacking 20 Relay Coupler Types 7 Relay Coupler Value 287 Item Schematics ----------------- Graviton Reactor | -2/Testing | Archive Adv. Plasma Rifle | -2/Testing | Archive Imp. Diametric Drive | -2/Section 7 | Archive Robot Schematics ------------------ M-13 Machinist | -10/Materials | Hacked C-55 Analyst | -2/Testing | Archive A-02 Transporter | -2/Testing | Archive A-27 Freighter | -2/Testing | Archive T-07 Excavator | -2/Testing | Archive Fabricated ------------ Nothing Repaired ---------- Lgt. Treads | 67% | -10/Materials EM Shotgun | 64% | -10/Materials Enh. Autogun | 33% | -8/Materials Imp. Cooling System | 27% | -8/Materials Enh. Autogun | 55% | -8/Materials Enh. Autogun | 30% | -7/Factory Enh. Autogun | 34% | -7/Factory Arm. Huge Wheel | 73% | -7/Factory Enh. Autogun | 73% | -7/Factory Enh. Autogun | 6% | -7/Factory Studied --------- Wheel | -8/Materials | Hacked Lgt. Treads | -8/Materials | Hacked Arm. Wheel | -8/Materials | Hacked Imp. Ion Engine | -8/Materials | Hacked Arm. Huge Wheel | -7/Factory | Hacked Phase Cannon | -6/Factory | Hacked Lgt. Angular Momentum Engine | -6/Factory | Hacked HERF Cannon | -5/Factory | Hacked Imp. Remote Datajack | -5/Factory | Hacked Adv. Remote Datajack | -3/Quarantine | Hacked Imp. Heavy Treads | -3/Quarantine | Hacked Com. HERF Cannon | -3/Quarantine | Hacked Hyb. Deuterium Engine | -3/Quarantine | Hacked Adv. Heavy Siege Treads | -2/Testing | Hacked Quantum Rifle | -2/Testing | Hacked Quantum Reactor | -2/Testing | Hacked Enh. Nova Cannon | -2/Testing | Hacked Alien Tech Used ----------------- Transdimensional Reconstructor LRC Matter Compressor Integrated Reactor Core Membrane Core Physics Calibrator Integrity Redistributor Subatomic Replicator Achievements -------------- Coming In Hot Deep Understanding Survival Of The Most Covered Challenges ------------ None Game ------ Seed TrackerTransportPenetrator Manual? 0 Play Time 06:09:37 Cumulative 834.3 hours Start 2026.04.03 @ 14:41:38 End 2026.04.04 @ 17:18:36 Sessions 15 Manual Loads 0 Difficulty Rogue Special Mode None Game No. 415 Rogue 415 Adventurer 0 Explorer 0 Win Type 0 Total 71 Types 46/5/6/4/1/1/3/3/1/1 Lore% 92 Gallery% 82 Achievement% 70 Wizard Run 0 Options --------- Layout 0 ASCII 0 Keyboard 1 Movement Numpad Keybinds 0 Fullscreen 2 Font 18/SmallcapsGlow Map View 76x50 Zoom Use 0% Tactical HUD 1 Map Filters NONE Filters NONE Steam 1 RUN: 8096318f-441b-457f-8f88-99cc40e2ec36